Workbook

Sheet Deckblatt (hidden)
A4: Statistischer Bericht
A21: Gerichtliche Ehelösungen
A23: 1991 - 2017
A25: Land Sachsen-Anhalt
A46: Statistisches Landesamt Sachsen-Anhalt

Sheet Seite 5 (hidden)
F1: 5
A3: =CONCATENATE(#REF!, " ",#REF!) -> 
A6: Jahr | B6: Eheschließungen | D6: Ehescheidungen
B7: insgesamt | C7: je 10 000 der mittleren Bevölkerung | D7: insgesamt | E7: je 10 000 der mittleren Bevölkerung | F7: je 100 Eheschließungen
A9: 1980 | B9: 25923 | C9: =(B9/3083615)*10000 -> 84.06691497 | D9: 8482 | E9: 27.5 | F9: =D9*100/B9 -> 32.7199784
A10: 1985 | B10: 23740 | C10: =(B10/3026754)*10000 -> 78.43386017 | D10: 9191 | E10: 30.4 | F10: 38.71524853
A11: 1990 | B11: 18393 | C11: =(B11/2890474)*10000 -> 63.6331619 | D11: 5990 | E11: 20.7 | F11: 32.56673735
A12: 1995 | B12: 9667 | C12: =(B12/2750367)*10000 -> 35.14803661 | D12: 3867 | E12: 14.1 | F12: 40.00206889
A13: 2000 | B13: 10310 | C13: =(B13/2633007)*10000 -> 39.1567512 | D13: 5823 | E13: 22.1 | F13: 56.47914646
A14: 2001 | B14: 9359 | C14: =(B14/2598378)*10000 -> 36.01862393 | D14: 5829 | E14: 22.4 | F14: 62.28229512
A15: 2002 | B15: 9274 | C15: =(B15/2564828)*10000 -> 36.15837007 | D15: 5838 | E15: 22.8 | F15: 62.95018331
A16: 2003 | B16: 9314 | C16: =(B16/2535412)*10000 -> 36.73564691 | D16: 5863 | E16: 23.1 | F16: 62.94824995
A17: 2004 | B17: 10748 | C17: =(B17/2509790)*10000 -> 42.82430004 | D17: 5866 | E17: 23.4 | F17: 54.57759583
A18: 2005 | B18: 10980 | C18: =(B18/2482446)*10000 -> 44.23056937 | D18: 5227 | E18: 21.1 | F18: 47.60473588
A19: 2006 | B19: 10114 | C19: =(B19/2455784)*10000 -> 41.18440384 | D19: 5097 | E19: 20.8 | F19: 50.3954914
A20: 2007 | B20: 10117 | C20: =(B20/2427603)*10000 -> 41.67485375 | D20: 4924 | E20: 20.3 | F20: 48.67055451
A21: 2008 | B21: 10515 | C21: =(B21/2397421)*10000 -> 43.85963083 | D21: 4994 | E21: 20.8 | F21: 47.49405611
A22: 2009 | B22: 10346 | C22: =(B22/2367938)*10000 -> 43.69202234 | D22: 4729 | E22: 20 | F22: 45.70848637
A23: 2010 | B23: 10453 | C23: =(B23/2344849)*10000 -> 44.57856348 | D23: 4500 | E23: 19.2 | F23: =D23*100/B23 -> 43.04984215
A24: 2011 | B24: 10264 | C24: =(B24/2287061)*10000 -> 44.87855811 | D24: 4808 | E24: 20.7 | F24: 46.84333593
A25: 2012 | B25: 10707 | C25: =(B25/2268065)*10000 -> 47.20764176 | D25: 4620 | E25: 20.4 | F25: 43.14934155
A26: 2013 | B26: 10083 | C26: =(B26/2251985)*10000 -> 44.77383286 | D26: 4220 | E26: 18.7 | F26: 41.85262323
A27: 2014 | B27: 10146 | C27: =(B27/2240063)*10000 -> 45.29336898 | D27: 4199 | E27: =100*D27/22406 -> 18.74051593 | F27: =D27*100/B27 -> 41.38576779
A28: 2015 | B28: 10575 | C28: =(B28/2240509)*10000 -> 47.19909628 | D28: 4109 | E28: =(100*D28)/22405 -> 18.33965633 | F28: =D28*100/B28 -> 38.85579196
A29: 2016 | B29: 10465 | C29: =B29/2240861*10000 -> 46.70079938 | D29: 4183 | E29: 18.7 | F29: 40
A30: 2017 | B30: 10424 | C30: =B30/2229667*10000 -> 46.75137588 | D30: 3808 | E30: =D30/2229667*10000 -> 17.07878351 | F30: =D30/B30*100 -> 36.53108212
A33: =CONCATENATE(#REF!, " ",#REF!) -> 
A36: Jahr | B36: Ehelösungen insgesamt | C36: Davon
C37: Scheidung der Ehe | D37: Aufhebung/ Nichtigkeit der Ehe
A40: 1991 | B40: 1520 | C40: 1519 | D40: 1
A41: 1995 | B41: 3869 | C41: 3867 | D41: 2
A42: 2000 | B42: 5826 | C42: 5823 | D42: 3
A43: 2001 | B43: 5832 | C43: 5829 | D43: 3
A44: 2002 | B44: 5840 | C44: 5838 | D44: 2
A45: 2003 | B45: 5871 | C45: 5863 | D45: 8
A46: 2004 | B46: 5874 | C46: 5866 | D46: 8
A47: 2005 | B47: 5239 | C47: 5227 | D47: 12
A48: 2006 | B48: 5102 | C48: 5097 | D48: 5
A49: 2007 | B49: 4930 | C49: 4924 | D49: 6
A50: 2008 | B50: 4999 | C50: 4994 | D50: 5
A51: 2009 | B51: 4737 | C51: 4729 | D51: 8
A52: 2010 | B52: 4506 | C52: 4500 | D52: 6
A53: 2011 | B53: 4815 | C53: 4808 | D53: 7
A54: 2012 | B54: 4621 | C54: 4620 | D54: 1
A55: 2013 | B55: 4228 | C55: 4220 | D55: 8
A56: 2014 | B56: 4 199 | C56: 4199 | D56: 0
A57: 2015 | B57: 4 113 | C57: 4109 | D57: 4
A58: 2016 | B58: 4 184 | C58: 4 183 | D58: 1
A59: 2017 | B59: 3 810 | C59: 3 808 | D59: 2

Sheet Deckbl

Sheet Inhalt
A1: Inhaltsverzeichnis
A3: Impressum
A4: 1. Eheschließungen und Ehescheidungen seit 1980 in Sachsen-Anhalt
A5: 2. Ehescheidungen seit 1991 in Sachsen-Anhalt nach kreisfreien Städten und Landkreisen
A6: 3. Ehescheidungen seit 2010 in Sachsen-Anhalt nach Monaten
A7: 4. Ehescheidungen in Sachsen-Anhalt nach Art der Entscheidung in der Ehesache
A8: 5. Anzahl der Ehescheidungen nach der Ehedauer seit 1991 in Sachsen-Anhalt
A9: 6. Anteil der Ehescheidungen nach der Ehedauer an den Ehescheidungen insgesamt seit 1991 in Sachsen-Anhalt
A10: 7. Ehescheidungen seit 2016 in Sachsen-Anhalt nach dem Eheschließungsjahr
A11: 8. Ehescheidungen in Sachsen-Anhalt nach dem Altersunterschied der Ehegatten
A12: 9. Ehescheidungen seit 2015 in Sachsen-Anhalt nach Staatsangehörigkeit der Ehegatten
A13: 10. Ehescheidungen seit 1991 in Sachsen-Anhalt nach der Anzahl der gemeinschaftlichen minderjährigen Kindern
A14: 11. Ehescheidungen in Sachsen-Anhalt nach kreisfreien Städten und Landkreisen sowie nach der Anzahl der gemeinschaftlichen minderjährigen Kinder

Sheet Impressum
A2: Herausgabemonat Februar 2024
A4: Inhaltliche Verantwortung:
A6: Dezernat Steuern, Kommunale Finanzen, Justiz
A7: Frau Rittmann | D7: Telefon: | E7: 0345 2318-204
A9: Informations- und Auskunftsdienst:
A11: Frau Hannemann | C11: Telefon: | D11: 0345 2318-777
A12: Frau Heyl | C12: Telefon: | D12: 0345 2318-716
A13: Frau Booch | C13: Telefon: | D13: 0345 2318-715
C14: Telefax: | D14: 0345 2318-913
C15: E-Mail: | D15: info@stala.mi.sachsen-anhalt.de
C18: Internet: | E18: https://statistik.sachsen-anhalt.de
C19: X (ehemals Twitter): | E19: @StatistikLSA
C20: Mastodon: | E20: @StatistikLSA@social.sachsen-anhalt.de
C21: Bluesky: | E21: @statistiklsa.bsky.social
A23: Vertrieb: | C23: Telefon: | D23: 0345 2318-718
C24: E-Mail: | D24: shop@stala.mi.sachsen-anhalt.de
A27: Bibliothek und | C27: Merseburger Straße 2
A28: Besucherdienst: | C28: Montag - Freitag: 8.00 Uhr - 12.00 Uhr
C29: Telefon: | D29: 0345 2318-714
C30: E-Mail: | D30: bibliothek@stala.mi.sachsen-anhalt.de
A33: Schriftliche
A34: Bestellungen an: | C34: Statistisches Landesamt Sachsen-Anhalt
C35: Öffentlichkeitsarbeit
C36: Postfach 20 11 56
C37: 06012 Halle (Saale)
A39: Herausgabe: | C39: Statistisches Landesamt Sachsen-Anhalt
A42: © | B42: Statistisches Landesamt Sachsen-Anhalt, Halle (Saale) 2024
B43: Auszugsweise Vervielfältigung und Verbreitung mit Quellenangabe gestattet.
A46: Bezug: | C46: kostenfrei als Excel-Datei verfügbar - Bestell-Nr.: 6B601
A49: Grafik: | C49: Pixabay.com/ kalhh

Sheet 1.
A2: 1. Eheschließungen und Ehescheidungen seit 1980 in Sachsen-Anhalt
A5: Jahr | B5: Eheschließungen1 | F5: Ehescheidungen
B6: insgesamt | D6: je 10 000 der mittleren Bevölkerung | F6: insgesamt | G6: je 10 000 der mittleren Bevölkerung | I6: je 100 Eheschließungen
A8: 1980 | B8: 25923 | D8: =(B8/3083615)*10000 -> 84.06691497 | F8: 8482 | G8: 27.5 | I8: =F8*100/B8 -> 32.7199784
A9: 1985 | B9: 23740 | D9: =(B9/3026754)*10000 -> 78.43386017 | F9: 9191 | G9: 30.4 | I9: 38.71524853
A10: 1990 | B10: 18393 | D10: =(B10/2890474)*10000 -> 63.6331619 | F10: 5990 | G10: 20.7 | I10: 32.56673735
A11: 1995 | B11: 9667 | D11: =(B11/2750367)*10000 -> 35.14803661 | F11: 3867 | G11: 14.1 | I11: 40.00206889
A12: 2000 | B12: 10310 | D12: =(B12/2633007)*10000 -> 39.1567512 | F12: 5823 | G12: 22.1 | I12: 56.47914646
A13: 2001 | B13: 9359 | D13: =(B13/2598378)*10000 -> 36.01862393 | F13: 5829 | G13: 22.4 | I13: 62.28229512
A14: 2002 | B14: 9274 | D14: =(B14/2564828)*10000 -> 36.15837007 | F14: 5838 | G14: 22.8 | I14: 62.95018331
A15: 2003 | B15: 9314 | D15: =(B15/2535412)*10000 -> 36.73564691 | F15: 5863 | G15: 23.1 | I15: 62.94824995
A16: 2004 | B16: 10748 | D16: =(B16/2509790)*10000 -> 42.82430004 | F16: 5866 | G16: 23.4 | I16: 54.57759583
A17: 2005 | B17: 10980 | D17: =(B17/2482446)*10000 -> 44.23056937 | F17: 5227 | G17: 21.1 | I17: 47.60473588
A18: 2006 | B18: 10114 | D18: =(B18/2455784)*10000 -> 41.18440384 | F18: 5097 | G18: 20.8 | I18: 50.3954914
A19: 2007 | B19: 10117 | D19: =(B19/2427603)*10000 -> 41.67485375 | F19: 4924 | G19: 20.3 | I19: 48.67055451
A20: 2008 | B20: 10515 | D20: =(B20/2397421)*10000 -> 43.85963083 | F20: 4994 | G20: 20.8 | I20: 47.49405611
A21: 2009 | B21: 10346 | D21: =(B21/2367938)*10000 -> 43.69202234 | F21: 4729 | G21: 20 | I21: 45.70848637
A22: 2010 | B22: 10453 | D22: =(B22/2344849)*10000 -> 44.57856348 | F22: 4500 | G22: 19.2 | I22: 43.04984215
A23: 2011 | B23: 10264 | D23: =(B23/2287061)*10000 -> 44.87855811 | F23: 4808 | G23: 20.7 | I23: 46.84333593
A24: 2012 | B24: 10707 | D24: =(B24/2268065)*10000 -> 47.20764176 | F24: 4620 | G24: 20.4 | I24: 43.14934155
A25: 2013 | B25: 10083 | D25: =(B25/2251985)*10000 -> 44.77383286 | F25: 4220 | G25: 18.7 | I25: 41.85262323
A26: 2014 | B26: 10146 | D26: =(B26/2240063)*10000 -> 45.29336898 | F26: 4199 | G26: =100*F26/22406 -> 18.74051593 | I26: =F26*100/B26 -> 41.38576779
A27: 2015 | B27: 10575 | D27: =(B27/2240509)*10000 -> 47.19909628 | F27: 4109 | G27: =(100*F27)/22405 -> 18.33965633 | I27: =F27*100/B27 -> 38.85579196
A28: 2016 | B28: 10465 | D28: =B28/2240861*10000 -> 46.70079938 | F28: 4183 | G28: 18.7 | I28: 40
A29: 2017 | B29: 10424 | D29: =B29/2229667*10000 -> 46.75137588 | F29: 3808 | G29: =F29/2229667*10000 -> 17.07878351 | I29: =F29/B29*100 -> 36.53108212
A30: 2018 | B30: 11370 | D30: =B30/2215701*10000 -> 51.31558816 | F30: 3479 | G30: =F30/2215701*10000 -> 15.70157706 | I30: =F30/B30*100 -> 30.59806508
A31: 2019 | B31: 10217 | D31: =B31/2201552*10000 -> 46.40817024 | F31: 3546 | G31: =F31/2201552*10000 -> 16.10681919 | I31: =F31/B31*100 -> 34.70686111
A32: 2020 | B32: 9187 | D32: =B32/2187733*10000 -> 41.99324141 | F32: 3389 | G32: =F32/2187733*10000 -> 15.49092142 | I32: =F32/B32*100 -> 36.8890824
A33: 2021 | B33: 8427 | D33: =B33/2174969*10000 -> 38.74537982 | F33: 3458 | G33: =F33/2174969*10000 -> 15.89907718 | I33: =F33/B33*100 -> 41.03476919
A36: 1 ab 2018 einschließlich gleichgeschlechtliche Eheschließungen

Sheet 2.
A2: 2. Ehescheidungen seit 1991 in Sachsen-Anhalt nach kreisfreien Städten und Landkreisen
A5: Kreisfreie Stadt Landkreis Land | B5: 1991 | C5: 1995 | D5: 2000 | E5: 2005 | F5: 2010 | G5: 2015
A7: Dessau-Roßlau, Stadt | B7: 55 | C7: 207 | D7: 199 | E7: 179 | F7: 186 | G7: 162
A8: Halle (Saale), Stadt | B8: 72 | C8: 335 | D8: 814 | E8: 628 | F8: 445 | G8: 525
A9: Magdeburg, Landeshauptstadt | B9: 149 | C9: 380 | D9: 711 | E9: 579 | F9: 448 | G9: 411
A11: Altmarkkreis Salzwedel | B11: 57 | C11: 177 | D11: 241 | E11: 215 | F11: 175 | G11: 175
A12: Anhalt-Bitterfeld | B12: 173 | C12: 277 | D12: 397 | E12: 363 | F12: 394 | G12: 317
A13: Börde | B13: 92 | C13: 308 | D13: 369 | E13: 420 | F13: 371 | G13: 366
A14: Burgenlandkreis | B14: 96 | C14: 370 | D14: 407 | E14: 396 | F14: 330 | G14: 301
A15: Harz | B15: 223 | C15: 391 | D15: 584 | E15: 472 | F15: 494 | G15: 415
A16: Jerichower Land | B16: 81 | C16: 133 | D16: 231 | E16: 199 | F16: 154 | G16: 157
A17: Mansfeld-Südharz | B17: 92 | C17: 183 | D17: 363 | E17: 282 | F17: 306 | G17: 256
A18: Saalekreis | B18: 53 | C18: 159 | D18: 352 | E18: 479 | F18: 262 | G18: 236
A19: Salzlandkreis | B19: 174 | C19: 401 | D19: 536 | E19: 415 | F19: 480 | G19: 384
A20: Stendal | B20: 126 | C20: 288 | D20: 323 | E20: 286 | F20: 239 | G20: 205
A21: Wittenberg | B21: 76 | C21: 258 | D21: 296 | E21: 314 | F21: 216 | G21: 199
A23: Sachsen-Anhalt | B23: =SUM(B7:B22) -> 1519 | C23: 3867 | D23: 5823 | E23: 5227 | F23: 4500 | G23: =SUM(G7:G21) -> 4109
A26: Noch 2. Ehescheidungen seit 1991 in Sachsen-Anhalt nach kreisfreien Städten und Landkreisen
A29: Kreisfreie Stadt Landkreis Land | B29: 2016 | C29: 2017 | D29: 2018 | E29: 2019 | F29: 2020 | G29: 2021
A31: Dessau-Roßlau, Stadt | B31: 144 | C31: 116 | D31: 133 | E31: 107 | F31: 115 | G31: 128
A32: Halle (Saale), Stadt | B32: 504 | C32: 552 | D32: 425 | E32: 424 | F32: 452 | G32: 466
A33: Magdeburg, Landeshauptstadt | B33: 391 | C33: 317 | D33: 378 | E33: 357 | F33: 310 | G33: 338
A35: Altmarkkreis Salzwedel | B35: 184 | C35: 148 | D35: 145 | E35: 129 | F35: 119 | G35: 113
A36: Anhalt-Bitterfeld | B36: 311 | C36: 291 | D36: 320 | E36: 311 | F36: 279 | G36: 231
A37: Börde | B37: 357 | C37: 337 | D37: 307 | E37: 282 | F37: 263 | G37: 328
A38: Burgenlandkreis | B38: 354 | C38: 293 | D38: 281 | E38: 260 | F38: 277 | G38: 266
A39: Harz | B39: 449 | C39: 375 | D39: 365 | E39: 390 | F39: 383 | G39: 377
A40: Jerichower Land | B40: 225 | C40: 191 | D40: 118 | E40: 143 | F40: 150 | G40: 151
A41: Mansfeld-Südharz | B41: 242 | C41: 254 | D41: 192 | E41: 234 | F41: 230 | G41: 216
A42: Saalekreis | B42: 251 | C42: 204 | D42: 164 | E42: 220 | F42: 192 | G42: 173
A43: Salzlandkreis | B43: 337 | C43: 374 | D43: 316 | E43: 304 | F43: 268 | G43: 325
A44: Stendal | B44: 230 | C44: 183 | D44: 189 | E44: 202 | F44: 198 | G44: 186
A45: Wittenberg | B45: 204 | C45: 173 | D45: 146 | E45: 183 | F45: 153 | G45: 160
A47: Sachsen-Anhalt | B47: =SUM(B31:B45) -> 4183 | C47: 4183 | D47: =SUM(D31:D45) -> 3479 | E47: =SUM(E31:E45) -> 3546 | F47: =SUM(F31:F45) -> 3389 | G47: =SUM(G31:G45) -> 3458

Sheet Seite 7 (hidden)
H1: 7
A3: =CONCATENATE(#REF!, " ",#REF!) -> 
A6: Jahr | B6: Entscheidung in der Ehesache | C6: Geschiedene Ehen | D6: Das Verfahren wurde beantragt
D7: vom Mann | F7: von der Frau | H7: von beiden Ehepartnern
D8: ohne | E8: mit | F8: ohne | G8: mit
D9: Zustimmung der Frau | F9: Zustimmung des Mannes
A11: 1991 | B11: vor einjähriger Trennung | C11: 280 | D11: 19 | E11: 38 | F11: 51 | G11: 134 | H11: 38
B12: nach einjähriger Trennung | C12: 633 | D12: 0 | E12: 165 | F12: 0 | G12: 390 | H12: 78
B13: nach dreijähriger Trennung | C13: 31 | D13: 8 | E13: 4 | F13: 6 | G13: 8 | H13: 5
B14: aufgrund anderer Vorschriften | C14: 36 | D14: 3 | E14: 7 | F14: 7 | G14: 18 | H14: 1
B16: Insgesamt | C16: =SUM(C11:C14) -> 980 | D16: 30 | E16: 214 | F16: 64 | G16: 550 | H16: 122
A18: 1995 | B18: vor einjähriger Trennung | C18: 11 | D18: 0 | E18: 2 | F18: 0 | G18: 9 | H18: 0
B19: nach einjähriger Trennung | C19: 3407 | D19: 0 | E19: 820 | F19: 0 | G19: 2587 | H19: 0
B20: nach dreijähriger Trennung | C20: 108 | D20: 4 | E20: 22 | F20: 10 | G20: 72 | H20: 0
B21: aufgrund anderer Vorschriften | C21: 0 | D21: 0 | E21: 0 | F21: 0 | G21: 0 | H21: 0
B23: Insgesamt | C23: =SUM(C18:C21) -> 3526 | D23: 4 | E23: 844 | F23: 10 | G23: 2668 | H23: 0
A25: 2000 | B25: vor einjähriger Trennung | C25: 4 | D25: 0 | E25: 1 | F25: 1 | G25: 2 | H25: 0
B26: nach einjähriger Trennung | C26: 4929 | D26: 0 | E26: 1508 | F26: 0 | G26: 3328 | H26: 93
B27: nach dreijähriger Trennung | C27: 737 | D27: 10 | E27: 221 | F27: 30 | G27: 463 | H27: 13
B28: aufgrund anderer Vorschriften | C28: 0 | D28: 0 | E28: 0 | F28: 0 | G28: 0 | H28: 0
B30: Insgesamt | C30: =SUM(C25:C28) -> 5670 | D30: 10 | E30: 1730 | F30: 31 | G30: 3793 | H30: 106
A32: 2005 | B32: vor einjähriger Trennung | C32: 22 | D32: 1 | E32: 9 | F32: 2 | G32: 9 | H32: 1
B33: nach einjähriger Trennung | C33: 4799 | D33: 85 | E33: 1495 | F33: 173 | G33: 2795 | H33: 251
B34: nach dreijähriger Trennung | C34: 403 | D34: 16 | E34: 117 | F34: 46 | G34: 202 | H34: 22
B35: aufgrund anderer Vorschriften | C35: 3 | D35: 0 | E35: 2 | F35: 1 | G35: 0 | H35: 0
B37: Insgesamt | C37: =SUM(C32:C35) -> 5227 | D37: 102 | E37: 1623 | F37: 222 | G37: 3006 | H37: 274
A39: 2010 | B39: vor einjähriger Trennung | C39: 106 | D39: 4 | E39: 35 | F39: 1 | G39: 62 | H39: 4
B40: nach einjähriger Trennung | C40: 3974 | D40: 41 | E40: 1458 | F40: 48 | G40: 2277 | H40: 150
B41: nach dreijähriger Trennung | C41: 418 | D41: 8 | E41: 156 | F41: 5 | G41: 232 | H41: 17
B42: aufgrund anderer Vorschriften | C42: 2 | D42: 0 | E42: 1 | F42: 0 | G42: 0 | H42: 0
B44: Insgesamt | C44: =SUM(C39:C42) -> 4500 | D44: 53 | E44: 1650 | F44: 54 | G44: 2571 | H44: 171
A46: 2015 | B46: vor einjähriger Trennung | C46: 49 | D46: 0 | E46: 18 | F46: 2 | G46: 28 | H46: 1
B47: nach einjähriger Trennung | C47: 3669 | D47: 34 | E47: 1371 | F47: 34 | G47: 2106 | H47: 124
B48: nach dreijähriger Trennung | C48: 359 | D48: 9 | E48: 142 | F48: 6 | G48: 177 | H48: 25
B49: aufgrund anderer Vorschriften | C49: 32 | D49: 2 | E49: 14 | F49: 3 | G49: 13 | H49: 0
B51: Insgesamt | C51: =SUM(C46:C49) -> 4109 | D51: 45 | E51: 1545 | F51: 45 | G51: 2324 | H51: 150
A53: 2016 | B53: vor einjähriger Trennung | C53: 31 | D53: 0 | E53: 14 | F53: 0 | G53: 16 | H53: 1
B54: nach einjähriger Trennung | C54: 3750 | D54: 23 | E54: 1449 | F54: 29 | G54: 2112 | H54: 137
B55: nach dreijähriger Trennung | C55: 343 | D55: 8 | E55: 124 | F55: 11 | G55: 171 | H55: 29
B56: aufgrund anderer Vorschriften | C56: 59 | D56: 7 | E56: 14 | F56: 15 | G56: 23 | H56: 0
B58: Insgesamt | C58: =SUM(C53:C56) -> 4183 | D58: =SUM(D53:D56) -> 38 | E58: =E53+E55+E54+E56 -> 1601 | F58: =SUM(F53:F56) -> 55 | G58: =SUM(G53:G56) -> 2322 | H58: =SUM(H53:H56) -> 167
A60: 2017 | B60: vor einjähriger Trennung | C60: 30 | D60: 0 | E60: 11 | F60: 0 | G60: 17 | H60: 2
B61: nach einjähriger Trennung | C61: 3440 | D61: 21 | E61: 1344 | F61: 22 | G61: 1911 | H61: 142
B62: nach dreijähriger Trennung | C62: 337 | D62: 3 | E62: 126 | F62: 16 | G62: 166 | H62: 26
B63: aufgrund anderer Vorschriften | C63: 1 | D63: 0 | E63: 1 | F63: 0 | G63: 0 | H63: 0
B65: Insgesamt | C65: =SUM(C60:C63) -> 3808 | D65: 24 | E65: 1482 | F65: 38 | G65: 2094 | H65: 170

Sheet Seite 8 (hidden)
A1: 8
A3: =CONCATENATE(#REF!, " ",#REF!) -> 
A4: 5.1 Geschiedene Ehen seit 1991 in Sachsen-Anhalt nach Altersgruppen der geschiedenen Männer
A6: Alter von … bis unter … Jahren | B6: Geschiedene Männer
B7: 1991 | C7: 1995 | D7: 2000 | E7: 2005 | F7: 2010 | G7: 2015 | H7: 2016 | I7: 2017
B8: Anzahl
A10: unter 20 | B10: 0 | C10: 0 | D10: 0 | E10: 0 | F10: 0 | G10: 0 | H10: 0 | I10: 0
A11: 20 bis unter 25 | B11: 113 | C11: 64 | D11: 39 | E11: 29 | F11: 44 | G11: 17 | H11: 15 | I11: 8
A12: 25 bis unter 30 | B12: 368 | C12: 649 | D12: 385 | E12: 276 | F12: 228 | G12: 171 | H12: 181 | I12: 127
A13: 30 bis unter 35 | B13: 350 | C13: 1028 | D13: 1028 | E13: 609 | F13: 506 | G13: 439 | H13: 435 | I13: 385
A14: 35 bis unter 40 | B14: 264 | C14: 844 | D14: 1539 | E14: 1021 | F14: 671 | G14: 605 | H14: 602 | I14: 514
A15: 40 bis unter 45 | B15: 180 | C15: 650 | D15: 1260 | E15: 1288 | F15: 849 | G15: 705 | H15: 615 | I15: 576
A16: 45 bis unter 50 | B16: 118 | C16: 265 | D16: 830 | E16: 970 | F16: 917 | G16: 768 | H16: 788 | I16: 763
A17: 50 bis unter 55 | B17: 70 | C17: 198 | D17: 388 | E17: 598 | F17: 656 | G17: 678 | H17: 732 | I17: 659
A18: 55 bis unter 60 | B18: 30 | C18: 102 | D18: 195 | E18: 225 | F18: 372 | G18: 405 | H18: 430 | I18: 431
A19: 60 bis unter 65 | B19: 16 | C19: 34 | D19: 112 | E19: 133 | F19: 147 | G19: 185 | H19: 226 | I19: 197
A20: 65 bis unter 70 | B20: 5 | C20: 20 | D20: 29 | E20: 55 | F20: 68 | G20: 88 | H20: 93 | I20: 92
A21: 70 bis unter 75 | B21: 1 | C21: 11 | D21: 12 | E21: 16 | F21: 29 | G21: 32 | H21: 45 | I21: 33
A22: 75 bis unter 80 | B22: 3 | C22: 2 | D22: 4 | E22: 2 | F22: 11 | G22: 14 | H22: 19 | I22: 19
A23: 80 und mehr | B23: 1 | C23: 0 | D23: 2 | E23: 5 | F23: 2 | G23: 2 | H23: 2 | I23: 4
A25: Insgesamt | B25: =SUM(B10:B23) -> 1519 | C25: 3867 | D25: 5823 | E25: 5227 | F25: 4500 | G25: =SUM(G10:G23) -> 4109 | H25: =SUM(H10:H23) -> 4183 | I25: =SUM(I10:I23) -> 3808
A28: 5.2 Geschiedene Ehen seit 1991 in Sachsen-Anhalt nach Altersgruppen der geschiedenen Frauen
A30: Alter von … bis unter … Jahren | B30: Geschiedene Frauen
B31: 1991 | C31: 1995 | D31: 2000 | E31: 2005 | F31: 2010 | G31: 2015 | H31: 2016 | I31: 2017
B32: Anzahl
A34: unter 20 | B34: 8 | C34: 0 | D34: 2 | E34: 1 | F34: 1 | G34: 0 | H34: 0 | I34: 0
A35: 20 bis unter 25 | B35: 259 | C35: 203 | D35: 132 | E35: 120 | F35: 125 | G35: 55 | H35: 51 | I35: 35
A36: 25 bis unter 30 | B36: 418 | C36: 982 | D36: 663 | E36: 432 | F36: 442 | G36: 363 | H36: 339 | I36: 269
A37: 30 bis unter 35 | B37: 313 | C37: 1058 | D37: 1302 | E37: 719 | F37: 578 | G37: 622 | H37: 595 | I37: 483
A38: 35 bis unter 40 | B38: 224 | C38: 766 | D38: 1591 | E38: 1189 | F38: 681 | G38: 616 | H38: 658 | I38: 693
A39: 40 bis unter 45 | B39: 141 | C39: 471 | D39: 1084 | E39: 1302 | F39: 917 | G39: 642 | H39: 674 | I39: 540
A40: 45 bis unter 50 | B40: 65 | C40: 179 | D40: 611 | E40: 810 | F40: 888 | G40: 746 | H40: 737 | I40: 744
A41: 50 bis unter 55 | B41: 53 | C41: 106 | D41: 232 | E41: 412 | F41: 479 | G41: 589 | H41: 594 | I41: 532
A42: 55 bis unter 60 | B42: 24 | C42: 70 | D42: 116 | E42: 135 | F42: 240 | G42: 282 | H42: 293 | I42: 296
A43: 60 bis unter 65 | B43: 6 | C43: 15 | D43: 59 | E43: 68 | F43: 87 | G43: 137 | H43: 157 | I43: 138
A44: 65 bis unter 70 | B44: 6 | C44: 12 | D44: 25 | E44: 29 | F44: 42 | G44: 33 | H44: 57 | I44: 59
A45: 70 bis unter 75 | B45: 0 | C45: 4 | D45: 3 | E45: 6 | F45: 18 | G45: 18 | H45: 13 | I45: 13
A46: 75 bis unter 80 | B46: 1 | C46: 1 | D46: 1 | E46: 2 | F46: 2 | G46: 5 | H46: 13 | I46: 6
A47: 80 und mehr | B47: 1 | C47: 0 | D47: 2 | E47: 2 | F47: 0 | G47: 1 | H47: 2 | I47: 0
A49: Insgesamt | B49: =SUM(B34:B47) -> 1519 | C49: 3867 | D49: 5823 | E49: 5227 | F49: 4500 | G49: 4109 | H49: =SUM(H34:H47) -> 4183 | I49: =SUM(I35:I47) -> 3808

Sheet Seite 9 (hidden)
I1: 9
A3: =CONCATENATE(#REF!, " ",#REF!) -> 
A4: 6.1 Anteil der Altersgruppen der Männer an der Gesamtzahl der geschiedenen Ehen
A6: Alter von … bis unter … Jahren | B6: Geschiedene Männer
B7: 1991 | C7: 1995 | D7: 2000 | E7: 2005 | F7: 2010 | G7: 2015 | H7: 2016 | I7: 2017
B8: Anteil der Altersgruppen an den Geschiedenen insgesamt in Prozent
A10: unter 20 | B10: 0 | C10: 0 | D10: 0 | E10: 0 | F10: 0 | G10: 0 | H10: 0 | I10: 0
A11: 20 bis unter 25 | B11: ='Seite 8'!B11/1519*100 -> 7.439104674 | C11: 1.7 | D11: 0.7 | E11: 0.6 | F11: 1 | G11: ='Seite 8'!G11/4109*100 -> 0.4137259674 | H11: ='Seite 8'!H11/4183*100 -> 0.3585943103 | I11: ='Seite 8'!I11/3808*100 -> 0.2100840336
A12: 25 bis unter 30 | B12: ='Seite 8'!B12/1519*100 -> 24.22646478 | C12: 16.8 | D12: 6.6 | E12: 5.3 | F12: 5.1 | G12: ='Seite 8'!G12/4109*100 -> 4.161596495 | H12: ='Seite 8'!H12/4183*100 -> 4.327038011 | I12: ='Seite 8'!I12/3808*100 -> 3.335084034
A13: 30 bis unter 35 | B13: ='Seite 8'!B13/1519*100 -> 23.04147465 | C13: 26.6 | D13: 17.7 | E13: 11.7 | F13: 11.2 | G13: ='Seite 8'!G13/4109*100 -> 10.68386469 | H13: ='Seite 8'!H13/4183*100 -> 10.399235 | I13: ='Seite 8'!I13/3808*100 -> 10.11029412
A14: 35 bis unter 40 | B14: ='Seite 8'!B14/1519*100 -> 17.37985517 | C14: 21.8 | D14: 26.4 | E14: 19.5 | F14: 14.9 | G14: ='Seite 8'!G14/4109*100 -> 14.72377707 | H14: ='Seite 8'!H14/4183*100 -> 14.39158499 | I14: ='Seite 8'!I14/3808*100 -> 13.49789916
A15: 40 bis unter 45 | B15: ='Seite 8'!B15/1519*100 -> 11.84990125 | C15: 16.8 | D15: 21.6 | E15: 24.6 | F15: 18.9 | G15: ='Seite 8'!G15/4109*100 -> 17.15745924 | H15: ='Seite 8'!H15/4183*100 -> 14.70236672 | I15: ='Seite 8'!I15/3808*100 -> 15.12605042
A16: 45 bis unter 50 | B16: ='Seite 8'!B16/1519*100 -> 7.768268598 | C16: 6.8 | D16: 14.3 | E16: 18.6 | F16: 20.4 | G16: ='Seite 8'!G16/4109*100 -> 18.690679 | H16: ='Seite 8'!H16/4183*100 -> 18.83815443 | I16: ='Seite 8'!I16/3808*100 -> 20.03676471
A17: 50 bis unter 55 | B17: ='Seite 8'!B17/1519*100 -> 4.608294931 | C17: 5.1 | D17: 6.7 | E17: 11.4 | F17: 14.6 | G17: ='Seite 8'!G17/4109*100 -> 16.50036505 | H17: ='Seite 8'!H17/4183*100 -> 17.49940234 | I17: ='Seite 8'!I17/3808*100 -> 17.30567227
A18: 55 bis unter 60 | B18: ='Seite 8'!B18/1519*100 -> 1.974983542 | C18: 2.6 | D18: 3.3 | E18: 4.3 | F18: 8.3 | G18: ='Seite 8'!G18/4109*100 -> 9.856412752 | H18: ='Seite 8'!H18/4183*100 -> 10.27970356 | I18: ='Seite 8'!I18/3808*100 -> 11.31827731
A19: 60 bis unter 65 | B19: ='Seite 8'!B19/1519*100 -> 1.053324556 | C19: 0.9 | D19: 1.9 | E19: 2.5 | F19: 3.3 | G19: ='Seite 8'!G19/4109*100 -> 4.502311998 | H19: ='Seite 8'!H19/4183*100 -> 5.402820942 | I19: ='Seite 8'!I19/3808*100 -> 5.173319328
A20: 65 bis unter 70 | B20: ='Seite 8'!B20/1519*100 -> 0.3291639236 | C20: 0.5 | D20: 0.5 | E20: 1.1 | F20: 1.5 | G20: ='Seite 8'!G20/4109*100 -> 2.141640302 | H20: ='Seite 8'!H20/4183*100 -> 2.223284724 | I20: ='Seite 8'!I20/3808*100 -> 2.415966387
A21: 70 bis unter 75 | B21: ='Seite 8'!B21/1519*100 -> 0.06583278473 | C21: 0.3 | D21: 0.2 | E21: 0.3 | F21: 0.6 | G21: ='Seite 8'!G21/4109*100 -> 0.7787782916 | H21: ='Seite 8'!H21/4183*100 -> 1.075782931 | I21: ='Seite 8'!I21/3808*100 -> 0.8665966387
A22: 75 bis unter 80 | B22: ='Seite 8'!B22/1519*100 -> 0.1974983542 | C22: 0.1 | D22: 0.1 | E22: 0 | F22: 0.2 | G22: ='Seite 8'!G22/4109*100 -> 0.3407155026 | H22: ='Seite 8'!H22/4183*100 -> 0.4542194597 | I22: ='Seite 8'!I22/3808*100 -> 0.4989495798
A23: 80 und mehr | B23: ='Seite 8'!B23/1519*100 -> 0.06583278473 | C23: 0 | D23: 0 | E23: 0.1 | F23: 0 | G23: 0 | H23: 0 | I23: ='Seite 8'!I23/3808*100 -> 0.1050420168
A25: Insgesamt | B25: =SUM(B10:B23) -> 100 | C25: 100 | D25: 100 | E25: 100 | F25: 100 | G25: 99.95132636 | H25: 99.95218743 | I25: ='Seite 8'!I25/3808*100 -> 100
A28: 6.2 Anteil der Altersgruppen der Frauen an der Gesamtzahl der geschiedenen Ehen
A30: Alter von … bis unter … Jahren | B30: Geschiedene Frauen
B31: 1991 | C31: 1995 | D31: 2000 | E31: 2005 | F31: 2010 | G31: 2015 | H31: 2016 | I31: 2017
B32: Anteil der Altersgruppe an den Geschiedenen insgesamt in Prozent
A34: unter 20 | B34: ='Seite 8'!B34/1519*100 -> 0.5266622778 | C34: 0 | D34: 0 | E34: 0 | F34: 0 | G34: 0 | H34: 0 | I34: 0
A35: 20 bis unter 25 | B35: ='Seite 8'!B35/1519*100 -> 17.05069124 | C35: ='Seite 8'!C35/3867*100 -> 5.249547453 | D35: ='Seite 8'!D35/5823*100 -> 2.266872746 | E35: ='Seite 8'!E35/5227*100 -> 2.295771953 | F35: ='Seite 8'!F35/4500*100 -> 2.777777778 | G35: ='Seite 8'!G35/4109*100 -> 1.338525189 | H35: ='Seite 8'!H35/4183*100 -> 1.219220655 | I35: ='Seite 8'!I35/3808*100 -> 0.9191176471
A36: 25 bis unter 30 | B36: ='Seite 8'!B36/1519*100 -> 27.51810402 | C36: ='Seite 8'!C36/3867*100 -> 25.39436255 | D36: ='Seite 8'!D36/5823*100 -> 11.38588357 | E36: ='Seite 8'!E36/5227*100 -> 8.264779032 | F36: ='Seite 8'!F36/4500*100 -> 9.822222222 | G36: ='Seite 8'!G36/4109*100 -> 8.834266245 | H36: ='Seite 8'!H36/4183*100 -> 8.104231413 | I36: ='Seite 8'!I36/3808*100 -> 7.06407563
A37: 30 bis unter 35 | B37: ='Seite 8'!B37/1519*100 -> 20.60566162 | C37: ='Seite 8'!C37/3867*100 -> 27.35971037 | D37: ='Seite 8'!D37/5823*100 -> 22.35960845 | E37: ='Seite 8'!E37/5227*100 -> 13.75550029 | F37: ='Seite 8'!F37/4500*100 -> 12.84444444 | G37: ='Seite 8'!G37/4109*100 -> 15.13750304 | H37: ='Seite 8'!H37/4183*100 -> 14.22424098 | I37: ='Seite 8'!I37/3808*100 -> 12.68382353
A38: 35 bis unter 40 | B38: ='Seite 8'!B38/1519*100 -> 14.74654378 | C38: ='Seite 8'!C38/3867*100 -> 19.80863719 | D38: ='Seite 8'!D38/5823*100 -> 27.3226859 | E38: ='Seite 8'!E38/5227*100 -> 22.74727377 | F38: ='Seite 8'!F38/4500*100 -> 15.13333333 | G38: ='Seite 8'!G38/4109*100 -> 14.99148211 | H38: ='Seite 8'!H38/4183*100 -> 15.73033708 | I38: ='Seite 8'!I38/3808*100 -> 18.19852941
A39: 40 bis unter 45 | B39: ='Seite 8'!B39/1519*100 -> 9.282422646 | C39: ='Seite 8'!C39/3867*100 -> 12.17998448 | D39: ='Seite 8'!D39/5823*100 -> 18.61583376 | E39: ='Seite 8'!E39/5227*100 -> 24.90912569 | F39: ='Seite 8'!F39/4500*100 -> 20.37777778 | G39: ='Seite 8'!G39/4109*100 -> 15.62423947 | H39: ='Seite 8'!H39/4183*100 -> 16.11283768 | I39: ='Seite 8'!I39/3808*100 -> 14.18067227
A40: 45 bis unter 50 | B40: ='Seite 8'!B40/1519*100 -> 4.279131007 | C40: ='Seite 8'!C40/3867*100 -> 4.628911301 | D40: ='Seite 8'!D40/5823*100 -> 10.49287309 | E40: ='Seite 8'!E40/5227*100 -> 15.49646068 | F40: ='Seite 8'!F40/4500*100 -> 19.73333333 | G40: ='Seite 8'!G40/4109*100 -> 18.15526892 | H40: ='Seite 8'!H40/4183*100 -> 17.61893378 | I40: ='Seite 8'!I40/3808*100 -> 19.53781513
A41: 50 bis unter 55 | B41: ='Seite 8'!B41/1519*100 -> 3.489137591 | C41: ='Seite 8'!C41/3867*100 -> 2.741143005 | D41: ='Seite 8'!D41/5823*100 -> 3.984200584 | E41: ='Seite 8'!E41/5227*100 -> 7.882150373 | F41: ='Seite 8'!F41/4500*100 -> 10.64444444 | G41: ='Seite 8'!G41/4109*100 -> 14.33438793 | H41: ='Seite 8'!H41/4183*100 -> 14.20033469 | I41: ='Seite 8'!I41/3808*100 -> 13.97058824
A42: 55 bis unter 60 | B42: ='Seite 8'!B42/1519*100 -> 1.579986833 | C42: ='Seite 8'!C42/3867*100 -> 1.810188777 | D42: ='Seite 8'!D42/5823*100 -> 1.992100292 | E42: ='Seite 8'!E42/5227*100 -> 2.582743447 | F42: ='Seite 8'!F42/4500*100 -> 5.333333333 | G42: ='Seite 8'!G42/4109*100 -> 6.862983694 | H42: ='Seite 8'!H42/4183*100 -> 7.004542195 | I42: ='Seite 8'!I42/3808*100 -> 7.773109244
A43: 60 bis unter 65 | B43: ='Seite 8'!B43/1519*100 -> 0.3949967084 | C43: ='Seite 8'!C43/3867*100 -> 0.387897595 | D43: ='Seite 8'!D43/5823*100 -> 1.013223424 | E43: ='Seite 8'!E43/5227*100 -> 1.30093744 | F43: ='Seite 8'!F43/4500*100 -> 1.933333333 | G43: ='Seite 8'!G43/4109*100 -> 3.334144561 | H43: ='Seite 8'!H43/4183*100 -> 3.753287115 | I43: ='Seite 8'!I43/3808*100 -> 3.62394958
A44: 65 bis unter 70 | B44: ='Seite 8'!B44/1519*100 -> 0.3949967084 | C44: ='Seite 8'!C44/3867*100 -> 0.310318076 | D44: ='Seite 8'!D44/5823*100 -> 0.4293319595 | E44: ='Seite 8'!E44/5227*100 -> 0.5548115554 | F44: ='Seite 8'!F44/4500*100 -> 0.9333333333 | G44: ='Seite 8'!G44/4109*100 -> 0.8031151132 | H44: ='Seite 8'!H44/4183*100 -> 1.362658379 | I44: ='Seite 8'!I44/3808*100 -> 1.549369748
A45: 70 bis unter 75 | B45: 0 | C45: ='Seite 8'!C45/3867*100 -> 0.1034393587 | D45: ='Seite 8'!D45/5823*100 -> 0.05151983514 | E45: ='Seite 8'!E45/5227*100 -> 0.1147885977 | F45: ='Seite 8'!F45/4500*100 -> 0.4 | G45: ='Seite 8'!G45/4109*100 -> 0.438062789 | H45: ='Seite 8'!H45/4183*100 -> 0.3107817356 | I45: ='Seite 8'!I45/3808*100 -> 0.3413865546
A46: 75 bis unter 80 | B46: ='Seite 8'!B46/1519*100 -> 0.06583278473 | C46: 0 | D46: 0 | E46: 0 | F46: 0 | G46: ='Seite 8'!G46/4109*100 -> 0.1216841081 | H46: ='Seite 8'!H46/4183*100 -> 0.3107817356 | I46: ='Seite 8'!I46/3808*100 -> 0.1575630252
A47: 80 und mehr | B47: ='Seite 8'!B47/1519*100 -> 0.06583278473 | C47: 0 | D47: ='Seite 8'!D47/3867*100 -> 0.05171967934 | E47: 0 | F47: 0 | G47: 0 | H47: 0 | I47: 0
A49: Insgesamt | B49: =SUM(B34:B47) -> 100 | C49: 99.97414016 | D49: 99.96585329 | E49: 99.90434284 | F49: 99.93333333 | G49: 99.97566318 | H49: 99.95218743 | I49: ='Seite 8'!I49/3808*100 -> 100

Sheet 3.
A2: 3. Ehescheidungen seit 2010 in Sachsen-Anhalt nach Monaten
A5: Jahr | B5: Monat | H5: 1. Halbjahr
B6: Januar | C6: Februar | D6: März | E6: April | F6: Mai | G6: Juni
A8: 2010 | B8: 409 | C8: 316 | D8: 443 | E8: 298 | F8: 379 | G8: 429 | H8: 2274
A9: 2011 | B9: 434 | C9: 373 | D9: 480 | E9: 353 | F9: 474 | G9: 343 | H9: 2457
A10: 2012 | B10: 384 | C10: 395 | D10: 405 | E10: 346 | F10: 363 | G10: 368 | H10: 2261
A11: 2013 | B11: 329 | C11: 413 | D11: 354 | E11: 402 | F11: 367 | G11: 370 | H11: 2235
A12: 2014 | B12: 277 | C12: 426 | D12: 427 | E12: 412 | F12: 384 | G12: 379 | H12: 2305
A13: 2015 | B13: 340 | C13: 277 | D13: 381 | E13: 341 | F13: 324 | G13: 389 | H13: 2052
A14: 2016 | B14: 351 | C14: 314 | D14: 370 | E14: 390 | F14: 359 | G14: 376 | H14: 2160
A15: 2017 | B15: 287 | C15: 380 | D15: 391 | E15: 288 | F15: 352 | G15: 290 | H15: 1988
A16: 2018 | B16: 333 | C16: 273 | D16: 268 | E16: 334 | F16: 308 | G16: 326 | H16: 1842
A17: 2019 | B17: 309 | C17: 304 | D17: 339 | E17: 241 | F17: 309 | G17: 290 | H17: 1792
A18: 2020 | B18: 278 | C18: 241 | D18: 241 | E18: 263 | F18: 199 | G18: 376 | H18: 1598
A19: 2021 | B19: 315 | C19: 257 | D19: 372 | E19: 289 | F19: 255 | G19: 364 | H19: 1852
A22: Noch 3. Ehescheidungen seit 2010 in Sachsen-Anhalt nach Monaten
A25: Jahr | B25: Monat | H25: Zusammen
B26: Juli | C26: August | D26: September | E26: Oktober | F26: November | G26: Dezember
A28: 2010 | B28: 343 | C28: 449 | D28: 358 | E28: 340 | F28: 378 | G28: 358 | H28: 4500
A29: 2011 | B29: 376 | C29: 397 | D29: 405 | E29: 338 | F29: 416 | G29: 419 | H29: 4808
A30: 2012 | B30: 433 | C30: 395 | D30: 366 | E30: 396 | F30: 455 | G30: 314 | H30: 4620
A31: 2013 | B31: 403 | C31: 320 | D31: 281 | E31: 308 | F31: 362 | G31: 311 | H31: 4220
A32: 2014 | B32: 378 | C32: 284 | D32: 324 | E32: 288 | F32: 332 | G32: 288 | H32: 4199
A33: 2015 | B33: 354 | C33: 330 | D33: 304 | E33: 370 | F33: 323 | G33: 376 | H33: 4109
A34: 2016 | B34: 337 | C34: 338 | D34: 333 | E34: 343 | F34: 359 | G34: 313 | H34: 4183
A35: 2017 | B35: 315 | C35: 327 | D35: 298 | E35: 274 | F35: 352 | G35: 254 | H35: 3808
A36: 2018 | B36: 255 | C36: 304 | D36: 222 | E36: 339 | F36: 287 | G36: 230 | H36: 3479
A37: 2019 | B37: 317 | C37: 277 | D37: 289 | E37: 304 | F37: 299 | G37: 268 | H37: 3546
A38: 2020 | B38: 291 | C38: 296 | D38: 320 | E38: 340 | F38: 257 | G38: 287 | H38: 3389
A39: 2021 | B39: 251 | C39: 242 | D39: 271 | E39: 238 | F39: 306 | G39: 298 | H39: 3458

Sheet 4.
A2: 4. Ehescheidungen in Sachsen-Anhalt nach Art der Entscheidung in der Ehesache
A5: Jahr | B5: Insgesamt | C5: Entscheidungen in der Ehesache nach § 1565 Abs. 1 BGB | F5: Ehescheidungen aufgrund anderer Vorschriften
C6: i.V.m. § 1565 Abs. 2 BGB Ehescheidungen vor einjähriger Trennung | D6: Ehescheidungen nach einjähriger Trennung | E6: i.V.m. § 1566 Abs. 2 BGB Ehescheidungen nach dreijähriger Trennung
A8: 2010 | B8: 4500 | C8: . | D8: 3974 | E8: 418 | F8: .
A9: 2011 | B9: 4808 | C9: . | D9: 4227 | E9: 455 | F9: .
A10: 2012 | B10: 4620 | C10: 84 | D10: 4069 | E10: 461 | F10: 6
A11: 2013 | B11: 4220 | C11: 63 | D11: 3716 | E11: 441 | F11: -
A12: 2014 | B12: 4199 | C12: 37 | D12: 3807 | E12: 351 | F12: 4
A13: 2015 | B13: 4109 | C13: 49 | D13: 3669 | E13: 359 | F13: 32
A14: 2016 | B14: 4183 | C14: 31 | D14: 3750 | E14: 343 | F14: 59
A15: 2017 | B15: 3808 | C15: . | D15: 3440 | E15: 337 | F15: .
A16: 2018 | B16: 3479 | C16: 30 | D16: 3180 | E16: 269 | F16: -
A17: 2019 | B17: 3546 | C17: 44 | D17: 3117 | E17: 312 | F17: 73
A18: 2020 | B18: 3389 | C18: 36 | D18: 2970 | E18: 296 | F18: 87
A19: 2021 | B19: 3458 | C19: 31 | D19: 2993 | E19: 357 | F19: 77

Sheet 5.
A2: 5. Anzahl der Ehescheidungen nach der Ehedauer seit 1991 in Sachsen-Anhalt
A5: Ehedauer in Jahren1 | C5: Anzahl der Ehescheidungen
C6: 1991 | D6: 1995 | E6: 2000 | F6: 2005 | G6: 2010 | H6: 2015 | I6: 2020 | J6: 2021
A8: unter 2 | C8: 71 | D8: 13 | E8: 14 | F8: 15 | G8: 27 | H8: 26 | I8: 16 | J8: 15
A9: 2 | C9: 175 | D9: 67 | E9: 77 | F9: 89 | G9: 149 | H9: 139 | I9: 107 | J9: 110
A10: 3 | C10: 137 | D10: 120 | E10: 129 | F10: 158 | G10: 236 | H10: 219 | I10: 184 | J10: 174
A11: 4 | C11: 109 | D11: 132 | E11: 179 | F11: 230 | G11: 192 | H11: 161 | I11: 157 | J11: 134
A12: 5 | C12: 135 | D12: 349 | E12: 222 | F12: 261 | G12: 244 | H12: 229 | I12: 205 | J12: 191
A14: unter 2 bis 5 zusammen | C14: 627 | D14: 681 | E14: 621 | F14: 753 | G14: 848 | H14: 774 | I14: =SUM(I8:I12) -> 669 | J14: =SUM(J8:J12) -> 624
A16: 6 | C16: 103 | D16: 360 | E16: 241 | F16: 283 | G16: 242 | H16: 254 | I16: 190 | J16: 232
A17: 7 | C17: 70 | D17: 343 | E17: 246 | F17: 257 | G17: 215 | H17: 204 | I17: 191 | J17: 221
A18: 8 | C18: 62 | D18: 309 | E18: 207 | F18: 224 | G18: 193 | H18: 198 | I18: 169 | J18: 199
A19: 9 | C19: 71 | D19: 252 | E19: 162 | F19: 155 | G19: 188 | H19: 183 | I19: 178 | J19: 180
A20: 10 | C20: 64 | D20: 224 | E20: 404 | F20: 194 | G20: 172 | H20: 179 | I20: 157 | J20: 156
A22: 6 bis 10 zusammen | C22: 370 | D22: 1488 | E22: 1260 | F22: 1113 | G22: 1010 | H22: 1018 | I22: =SUM(I16:I20) -> 885 | J22: =SUM(J16:J20) -> 988
A24: 11 bis 15 | C24: 226 | D24: 759 | E24: 1785 | F24: 733 | G24: 590 | H24: 677 | I24: 616 | J24: 640
A25: 16 bis 20 | C25: 155 | D25: 510 | E25: 1015 | F25: 1201 | G25: 519 | H25: 452 | I25: 390 | J25: 418
A26: 21 bis 25 | C26: 68 | D26: 251 | E26: 681 | F26: 753 | G26: 746 | H26: 360 | I26: 264 | J26: 263
A27: über 25 | C27: 73 | D27: 178 | E27: 461 | F27: 674 | G27: 787 | H27: 828 | I27: 565 | J27: 525
A29: Insgesamt | C29: 1519 | D29: 3867 | E29: 5823 | F29: 5227 | G29: 4500 | H29: 4109 | I29: =I14+I22+I24+I25+I26+I27 -> 3389 | J29: =J14+J22+J24+J25+J26+J27 -> 3458
A32: 1 berechnete Differenz zwischen dem Jahr der Rechtskraft und dem Jahr der Eheschließung

Sheet Grafik (hidden)
A5: Ehedauer in Jahren | B5: Ehescheidungen
B6: 1991 | C6: 1995 | D6: 2000 | E6: 2005 | F6: 2010 | G6: 2015 | H6: 2016
B7: Anzahl
A9: Unter 1 | B9: 3 | C9: 0 | D9: 0 | E9: 2 | F9: 2 | G9: 0 | H9: 0
A10: 1 | B10: 68 | C10: 13 | D10: 14 | E10: 13 | F10: 25 | G10: 26 | H10: 28
A11: 2 | B11: 175 | C11: 67 | D11: 77 | E11: 89 | F11: 149 | G11: 139 | H11: 148
A12: 3 | B12: 137 | C12: 120 | D12: 129 | E12: 158 | F12: 236 | G12: 219 | H12: 182
A13: 4 | B13: 109 | C13: 132 | D13: 179 | E13: 230 | F13: 192 | G13: 161 | H13: 162
A14: 5 | B14: 135 | C14: 349 | D14: 222 | E14: 261 | F14: 244 | G14: 229 | H14: 229
A16: Unter 1 bis 5 gesamt | B16: =SUM(B9:B15) -> 627 | C16: =SUM(C9:C14) -> 681 | D16: =SUM(D9:D14) -> 621 | E16: =SUM(E9:E14) -> 753 | F16: =SUM(F9:F14) -> 848 | G16: 774 | H16: =H9+H10+H11+H12+H13+H14 -> 749
A18: 6 | B18: 103 | C18: 360 | D18: 241 | E18: 283 | F18: 242 | G18: 254 | H18: 237
A19: 7 | B19: 70 | C19: 343 | D19: 246 | E19: 257 | F19: 215 | G19: 204 | H19: 272
A20: 8 | B20: 62 | C20: 309 | D20: 207 | E20: 224 | F20: 193 | G20: 198 | H20: 236
A21: 9 | B21: 71 | C21: 252 | D21: 162 | E21: 155 | F21: 188 | G21: 183 | H21: 202
A22: 10 | B22: 64 | C22: 224 | D22: 404 | E22: 194 | F22: 172 | G22: 179 | H22: 178
A24: 6 bis 10 gesamt | B24: =SUM(B18:B22) -> 370 | C24: 1488 | D24: 1260 | E24: 1113 | F24: 1010 | G24: 1018 | H24: =H18+H19+H20+H21+H22 -> 1125
A26: 11 bis 15 | B26: 226 | C26: 759 | D26: 1785 | E26: 733 | F26: 590 | G26: 677 | H26: 654
A27: 16 bis 20 | B27: 155 | C27: 510 | D27: 1015 | E27: 1201 | F27: 519 | G27: 452 | H27: 482
A28: 21 bis 25 | B28: 68 | C28: 251 | D28: 681 | E28: 753 | F28: 746 | G28: 360 | H28: 300
A29: über 25 | B29: 73 | C29: 178 | D29: 461 | E29: 674 | F29: 787 | G29: 828 | H29: 873
A31: Insgesamt | B31: =SUM(B26:B29,B24,B16) -> 1519 | C31: 3867 | D31: 5823 | E31: 5227 | F31: 4500 | G31: 4109 | H31: =H16+H24+H26+H27+H28+H29 -> 4183

Sheet Grafik von Seite 13 (hidden)
A7: Ehedauer in Jahren | B7: Anteil der Ehescheidungen nach der Ehedauer an den Ehescheidungen insgesamt in %
B10: 1991 | C10: 1995 | D10: 2000 | E10: 2005 | F10: 2010 | G10: 2015 | H10: 2016
A12: Unter 1 | B12: 0.2 | C12: 0 | D12: 0 | E12: 0 | F12: 0 | G12: 0 | H12: -
A13: 1 | B13: 4.5 | C13: 0.4 | D13: 0.3 | E13: 0.3 | F13: 0.6 | G13: 0.6 | H13: 0.7
A14: 2 | B14: 11.5 | C14: 1.7 | D14: 1.3 | E14: 1.7 | F14: 3.3 | G14: 3.4 | H14: 3.5
A15: 3 | B15: 9 | C15: 3.1 | D15: 2.2 | E15: 3 | F15: 5.2 | G15: 5.3 | H15: 4.4
A16: 4 | B16: 7.2 | C16: 3.4 | D16: 3.1 | E16: 4.4 | F16: 4.3 | G16: 3.9 | H16: 3.9
A17: 5 | B17: 8.9 | C17: 9 | D17: 3.8 | E17: 5 | F17: 5.4 | G17: 5.6 | H17: 5.5
H18: 4183
A19: Unter 1 bis 5 gesamt | B19: 41.3 | C19: 17.6 | D19: 10.7 | E19: 14.4 | F19: 18.8 | G19: 18.8 | H19: 0.179
A21: 6 | B21: 6.8 | C21: 9.3 | D21: 4.1 | E21: 5.4 | F21: 5.4 | G21: 6.2 | H21: 5.7
A22: 7 | B22: 4.6 | C22: 8.9 | D22: 4.2 | E22: 4.9 | F22: 4.8 | G22: 5 | H22: 6.5
A23: 8 | B23: 4.1 | C23: 8 | D23: 3.6 | E23: 4.3 | F23: 4.3 | G23: 4.8 | H23: 5.6
A24: 9 | B24: 4.7 | C24: 6.5 | D24: 2.8 | E24: 3 | F24: 4.2 | G24: 4.5 | H24: 4.8
A25: 10 | B25: 4.2 | C25: 5.8 | D25: 6.9 | E25: 3.7 | F25: 3.8 | G25: 4.4 | H25: 4.3
A27: 6 bis 10 gesamt | B27: 24.4 | C27: 38.5 | D27: 21.6 | E27: 21.3 | F27: 22.5 | G27: 24.8 | H27: 0.269
A29: 11 bis 15 | B29: 14.9 | C29: 19.6 | D29: 30.7 | E29: 14 | F29: 13.1 | G29: 16.5 | H29: 0.156
A30: 16 bis 20 | B30: 10.2 | C30: 13.2 | D30: 17.4 | E30: 23 | F30: 11.5 | G30: 11 | H30: 0.115
A31: 21 bis 25 | B31: 4.5 | C31: 6.5 | D31: 11.7 | E31: 14.4 | F31: 16.6 | G31: 8.8 | H31: 0.072
A32: über 25 | B32: 4.8 | C32: 4.6 | D32: 7.9 | E32: 12.9 | F32: 17.5 | G32: 20.2 | H32: 0.209
A33: 26 bis 35 | H33: 0.157
A34: 36 bis 45 | H34: 0.049
A35: 46 bis 55 | H35: 0.007
A36: 56 bis 65 | H36: 0.0005
A38: 26 bis 30 | H38: 0.1
A39: 31 bis 35 | H39: 0.056
A40: 36 bis 40 | H40: 0.031
A41: 41 bis 45 | H41: 0.014
A42: 46 bis 50 | H42: 0.005
A43: über 50 | H43: 0.002
A51: Unter 1 bis 10 | H51: 0.448
A53: 11 bis 20 | H53: 0.271
A54: 21 bis 30 | H54: 0.172
A55: 31 bis 40 | H55: 0.087
A56: 41 bis 50 | H56: 0.019
A57: über 50 | H57: 0.002

Sheet Seite 12 (hidden)
A1: 12
A3: =CONCATENATE(#REF!, " ",#REF!) -> 
A6: Altersunterschied | B6: Anzahl der Ehescheidungen
B7: 1991 | C7: 1995 | D7: 2000 | E7: 2005 | F7: 2010 | G7: 2015 | H7: 2016 | I7: 2017
A9: Mann und Frau gleich alt (weniger als ein Jahr) | B9: 336 | C9: 840 | D9: 1231 | E9: 1105 | F9: 874 | G9: 829 | H9: 788 | I9: 696
A12: Männer älter zusammen davon um: | B12: =SUM(B15:B29) -> 1013 | C12: 2543 | D12: 3766 | E12: 3298 | F12: 2905 | G12: 2632 | H12: =SUM(H15:H29) -> 2728 | I12: 2507
A15: 1 Jahr | B15: 226 | C15: 494 | D15: 788 | E15: 618 | F15: 519 | G15: 463 | H15: 470 | I15: 415
A16: 2 Jahre | B16: 169 | C16: 502 | D16: 705 | E16: 585 | F16: 478 | G16: 404 | H16: 410 | I16: 395
A17: 3 Jahre | B17: 161 | C17: 387 | D17: 573 | E17: 488 | F17: 395 | G17: 362 | H17: 403 | I17: 344
A18: 4 Jahre | B18: 118 | C18: 286 | D18: 430 | E18: 405 | F18: 341 | G18: 314 | H18: 309 | I18: 293
A19: 5 Jahre | B19: 77 | C19: 253 | D19: 335 | E19: 293 | F19: 260 | G19: 208 | H19: 228 | I19: 252
A21: 6 Jahre | B21: 79 | C21: 165 | D21: 228 | E21: 200 | F21: 182 | G21: 174 | H21: 198 | I21: 175
A22: 7 Jahre | B22: 54 | C22: 124 | D22: 166 | E22: 168 | F22: 173 | G22: 156 | H22: 145 | I22: 127
A23: 8 Jahre | B23: 38 | C23: 75 | D23: 101 | E23: 130 | F23: 134 | G23: 125 | H23: 125 | I23: 101
A24: 9 Jahre | B24: 21 | C24: 53 | D24: 110 | E24: 78 | F24: 86 | G24: 85 | H24: 88 | I24: 87
A25: 10 Jahre | B25: 21 | C25: 45 | D25: 76 | E25: 69 | F25: 59 | G25: 59 | H25: 75 | I25: 57
A27: 11 bis 15 Jahre | B27: 39 | C27: 103 | D27: 192 | E27: 189 | F27: 180 | G27: 193 | H27: 183 | I27: 166
A29: 16 Jahre und mehr | B29: 10 | C29: 56 | D29: 62 | E29: 75 | F29: 98 | G29: 89 | H29: 94 | I29: =67+28 -> 95
A32: Frauen älter zusammen davon um: | B32: =SUM(B35:B49) -> 170 | C32: 484 | D32: =SUM(D35:D49) -> 826 | E32: 824 | F32: 721 | G32: 648 | H32: =SUM(H35:H49) -> 667 | I32: 605
A35: 1 Jahr | B35: 67 | C35: 159 | D35: 238 | E35: 225 | F35: 203 | G35: 174 | H35: 197 | I35: 166
A36: 2 Jahre | B36: 27 | C36: 94 | D36: 167 | E36: 130 | F36: 111 | G36: 115 | H36: 122 | I36: 121
A37: 3 Jahre | B37: 25 | C37: 64 | D37: 94 | E37: 96 | F37: 84 | G37: 84 | H37: 89 | I37: 87
A38: 4 Jahre | B38: 17 | C38: 35 | D38: 72 | E38: 69 | F38: 72 | G38: 75 | H38: 67 | I38: 53
A39: 5 Jahre | B39: 7 | C39: 28 | D39: 54 | E39: 62 | F39: 38 | G39: 45 | H39: 45 | I39: 44
A41: 6 Jahre | B41: 11 | C41: 21 | D41: 52 | E41: 45 | F41: 39 | G41: 41 | H41: 34 | I41: 32
A42: 7 Jahre | B42: 3 | C42: 27 | D42: 32 | E42: 37 | F42: 35 | G42: 28 | H42: 19 | I42: 26
A43: 8 Jahre | B43: 3 | C43: 16 | D43: 30 | E43: 35 | F43: 20 | G43: 11 | H43: 21 | I43: 16
A44: 9 Jahre | B44: 4 | C44: 6 | D44: 19 | E44: 13 | F44: 13 | G44: 13 | H44: 9 | I44: 13
A45: 10 Jahre | B45: 3 | C45: 3 | D45: 13 | E45: 12 | F45: 23 | G45: 12 | H45: 13 | I45: 11
A47: 11 bis 15 Jahre | B47: 2 | C47: 23 | D47: 38 | E47: 70 | F47: 44 | G47: 32 | H47: 28 | I47: 23
A49: 16 Jahre und mehr | B49: 1 | C49: 8 | D49: 17 | E49: 30 | F49: 39 | G49: 18 | H49: 23 | I49: 13
A51: Insgesamt | B51: =SUM(B35:B49,B15:B29,B9) -> 1519 | C51: 3867 | D51: 5823 | E51: 5227 | F51: 4500 | G51: =SUM(G35:G49,G15:G29,G9) -> 4109 | H51: =SUM(H35:H49,H15:H29,H9) -> 4183 | I51: =I32+I12+I9 -> 3808

Sheet Seite 13 (hidden)
K1: 13
A3: 10. | B3: =#REF! -> 
A6: Altersunterschied | D6: Anteil der Ehescheidungen nach dem Altersunterschied der Ehegatten an den Ehescheidungen insgesamt in %
D7: 1991 | E7: 1995 | F7: 2000 | G7: 2005 | H7: 2010 | I7: 2015 | J7: 2016 | K7: 2017
A9: Mann und Frau gleich alt (weniger als ein Jahr) | D9: 22.1 | E9: 21.7 | F9: 21.1 | G9: 21.2 | H9: 19.4 | I9: 20.2 | J9: =ROUND('Seite 12'!H9/'Seite 12'!$H$51*100,1) -> 18.8 | K9: =ROUND('Seite 12'!I9/'Seite 12'!$I$51*100,1) -> 18.3
A12: Männer älter zusammen davon um: | D12: =SUM(D15:D29) -> 66.7 | E12: 65.8 | F12: 64.7 | G12: 63 | H12: 64.5 | I12: 64.1 | J12: =ROUND('Seite 12'!H12/'Seite 12'!$H$51*100,1) -> 65.2 | K12: =ROUND('Seite 12'!I12/'Seite 12'!$I$51*100,1) -> 65.8
A15: 1 Jahr | D15: 14.9 | E15: 12.8 | F15: 13.5 | G15: 11.8 | H15: 11.5 | I15: 11.3 | J15: =ROUND('Seite 12'!H15/'Seite 12'!$H$51*100,1) -> 11.2 | K15: =ROUND('Seite 12'!I15/'Seite 12'!$I$51*100,1) -> 10.9
A16: 2 Jahre | D16: 11.1 | E16: 13 | F16: 12.1 | G16: 11.2 | H16: 10.6 | I16: 9.8 | J16: =ROUND('Seite 12'!H16/'Seite 12'!$H$51*100,1) -> 9.8 | K16: =ROUND('Seite 12'!I16/'Seite 12'!$I$51*100,1) -> 10.4
A17: 3 Jahre | D17: 10.6 | E17: 10 | F17: 9.8 | G17: 9.3 | H17: 8.8 | I17: 8.8 | J17: =ROUND('Seite 12'!H17/'Seite 12'!$H$51*100,1) -> 9.6 | K17: =ROUND('Seite 12'!I17/'Seite 12'!$I$51*100,1) -> 9
A18: 4 Jahre | D18: 7.8 | E18: 7.4 | F18: 7.4 | G18: 7.8 | H18: 7.6 | I18: 7.6 | J18: =ROUND('Seite 12'!H18/'Seite 12'!$H$51*100,1) -> 7.4 | K18: =ROUND('Seite 12'!I18/'Seite 12'!$I$51*100,1) -> 7.7
A19: 5 Jahre | D19: 5.1 | E19: 6.5 | F19: 5.8 | G19: 5.6 | H19: 5.8 | I19: 5.1 | J19: =ROUND('Seite 12'!H19/'Seite 12'!$H$51*100,1) -> 5.5 | K19: =ROUND('Seite 12'!I19/'Seite 12'!$I$51*100,1) -> 6.6
A21: 6 Jahre | D21: 5.2 | E21: 4.3 | F21: 3.9 | G21: 3.8 | H21: 4 | I21: 4.2 | J21: =ROUND('Seite 12'!H21/'Seite 12'!$H$51*100,1) -> 4.7 | K21: =ROUND('Seite 12'!I21/'Seite 12'!$I$51*100,1) -> 4.6
A22: 7 Jahre | D22: 3.5 | E22: 3.2 | F22: 2.9 | G22: 3.2 | H22: 3.8 | I22: 3.8 | J22: =ROUND('Seite 12'!H22/'Seite 12'!$H$51*100,1) -> 3.5 | K22: =ROUND('Seite 12'!I22/'Seite 12'!$I$51*100,1) -> 3.3
A23: 8 Jahre | D23: 2.5 | E23: 1.9 | F23: 1.7 | G23: 2.5 | H23: 3 | I23: 3 | J23: =ROUND('Seite 12'!H23/'Seite 12'!$H$51*100,1) -> 3 | K23: =ROUND('Seite 12'!I23/'Seite 12'!$I$51*100,1) -> 2.7
A24: 9 Jahre | D24: 1.4 | E24: 1.4 | F24: 1.9 | G24: 1.5 | H24: 1.9 | I24: 2.1 | J24: =ROUND('Seite 12'!H24/'Seite 12'!$H$51*100,1) -> 2.1 | K24: =ROUND('Seite 12'!I24/'Seite 12'!$I$51*100,1) -> 2.3
A25: 10 Jahre | D25: 1.4 | E25: 1.2 | F25: 1.3 | G25: 1.3 | H25: 1.3 | I25: 1.4 | J25: =ROUND('Seite 12'!H25/'Seite 12'!$H$51*100,1) -> 1.8 | K25: =ROUND('Seite 12'!I25/'Seite 12'!$I$51*100,1) -> 1.5
A27: 11 bis 15 Jahre | D27: 2.6 | E27: 2.7 | F27: 3.3 | G27: 3.6 | H27: 4 | I27: 4.7 | J27: =ROUND('Seite 12'!H27/'Seite 12'!$H$51*100,1) -> 4.4 | K27: =ROUND('Seite 12'!I27/'Seite 12'!$I$51*100,1) -> 4.4
A29: 16 Jahre und mehr | D29: 0.6 | E29: 1.4 | F29: 1.1 | G29: 1.4 | H29: 2.2 | I29: 2.2 | J29: =ROUND('Seite 12'!H29/'Seite 12'!$H$51*100,1) -> 2.2 | K29: =ROUND('Seite 12'!I29/'Seite 12'!$I$51*100,1) -> 2.5
A31: Frauen älter zusammen davon um: | D31: =SUM(D34:D48) -> 11.2 | E31: =SUM(E34:E48) -> 12.5 | F31: =SUM(F34:F48) -> 14.2 | G31: =SUM(G34:G48) -> 15.8 | H31: =SUM(H34:H48) -> 16.1 | I31: 15.8 | J31: =ROUND('Seite 12'!H32/'Seite 12'!$H$51*100,1) -> 15.9 | K31: =ROUND('Seite 12'!I32/'Seite 12'!$I$51*100,1) -> 15.9
A34: 1 Jahr | D34: 4.4 | E34: 4.1 | F34: 4.1 | G34: 4.3 | H34: 4.5 | I34: 4.2 | J34: =ROUND('Seite 12'!H35/'Seite 12'!$H$51*100,1) -> 4.7 | K34: =ROUND('Seite 12'!I35/'Seite 12'!$I$51*100,1) -> 4.4
A35: 2 Jahre | D35: 1.8 | E35: 2.4 | F35: 2.9 | G35: 2.5 | H35: 2.5 | I35: 2.8 | J35: =ROUND('Seite 12'!H36/'Seite 12'!$H$51*100,1) -> 2.9 | K35: =ROUND('Seite 12'!I36/'Seite 12'!$I$51*100,1) -> 3.2
A36: 3 Jahre | D36: 1.6 | E36: 1.7 | F36: 1.6 | G36: 1.8 | H36: 1.9 | I36: 2 | J36: =ROUND('Seite 12'!H37/'Seite 12'!$H$51*100,1) -> 2.1 | K36: =ROUND('Seite 12'!I37/'Seite 12'!$I$51*100,1) -> 2.3
A37: 4 Jahre | D37: 1.1 | E37: 0.9 | F37: 1.2 | G37: 1.3 | H37: 1.6 | I37: 1.8 | J37: =ROUND('Seite 12'!H38/'Seite 12'!$H$51*100,1) -> 1.6 | K37: =ROUND('Seite 12'!I38/'Seite 12'!$I$51*100,1) -> 1.4
A38: 5 Jahre | D38: 0.5 | E38: 0.7 | F38: 0.9 | G38: 1.2 | H38: 0.8 | I38: 1.1 | J38: =ROUND('Seite 12'!H39/'Seite 12'!$H$51*100,1) -> 1.1 | K38: =ROUND('Seite 12'!I39/'Seite 12'!$I$51*100,1) -> 1.2
A40: 6 Jahre | D40: 0.7 | E40: 0.5 | F40: 0.9 | G40: 0.9 | H40: 0.9 | I40: 1 | J40: =ROUND('Seite 12'!H41/'Seite 12'!$H$51*100,1) -> 0.8 | K40: =ROUND('Seite 12'!I41/'Seite 12'!$I$51*100,1) -> 0.8
A41: 7 Jahre | D41: 0.2 | E41: 0.7 | F41: 0.6 | G41: 0.7 | H41: 0.8 | I41: 0.7 | J41: =ROUND('Seite 12'!H42/'Seite 12'!$H$51*100,1) -> 0.5 | K41: =ROUND('Seite 12'!I42/'Seite 12'!$I$51*100,1) -> 0.7
A42: 8 Jahre | D42: 0.2 | E42: 0.4 | F42: 0.5 | G42: 0.7 | H42: 0.4 | I42: 0.3 | J42: =ROUND('Seite 12'!H43/'Seite 12'!$H$51*100,1) -> 0.5 | K42: =ROUND('Seite 12'!I43/'Seite 12'!$I$51*100,1) -> 0.4
A43: 9 Jahre | D43: 0.3 | E43: 0.2 | F43: 0.3 | G43: 0.3 | H43: 0.3 | I43: 0.3 | J43: =ROUND('Seite 12'!H44/'Seite 12'!$H$51*100,1) -> 0.2 | K43: =ROUND('Seite 12'!I44/'Seite 12'!$I$51*100,1) -> 0.3
A44: 10 Jahre | D44: 0.2 | E44: 0.1 | F44: 0.2 | G44: 0.2 | H44: 0.5 | I44: 0.3 | J44: =ROUND('Seite 12'!H45/'Seite 12'!$H$51*100,1) -> 0.3 | K44: =ROUND('Seite 12'!I45/'Seite 12'!$I$51*100,1) -> 0.3
B46: 11 bis 15 Jahre | D46: 0.1 | E46: 0.6 | F46: 0.7 | G46: 1.3 | H46: 1 | I46: 0.8 | J46: =ROUND('Seite 12'!H47/'Seite 12'!$H$51*100,1) -> 0.7 | K46: =ROUND('Seite 12'!I47/'Seite 12'!$I$51*100,1) -> 0.6
A48: 16 Jahre und mehr | D48: 0.1 | E48: 0.2 | F48: 0.3 | G48: 0.6 | H48: 0.9 | I48: 0.4 | J48: =ROUND('Seite 12'!H49/'Seite 12'!$H$51*100,1) -> 0.5 | K48: =ROUND('Seite 12'!I49/'Seite 12'!$I$51*100,1) -> 0.3
A50: Insgesamt | D50: =SUM(D34:D48,D15:D29,D9) -> 100 | E50: =SUM(E34:E48,E15:E29,E9) -> 100 | F50: =SUM(F34:F48,F15:F29,F9) -> 100 | G50: =SUM(G34:G48,G15:G29,G9) -> 100 | H50: =SUM(H34:H48,H15:H29,H9) -> 100 | I50: 100 | J50: 100 | K50: 100

Sheet 6.
A2: 6. Anteil der Ehescheidungen nach der Ehedauer an den Ehescheidungen insgesamt seit 1991
A3: 5. in Sachsen-Anhalt
A5: Ehedauer in Jahren1 | C5: Anteil der Ehescheidungen nach der Ehedauer an den Ehescheidungen insgesamt in Prozent
C6: 1991 | D6: 1995 | E6: 2000 | F6: 2005 | G6: 2010 | H6: 2015 | I6: 2020 | J6: 2021
A8: unter 2 | C8: 4.7 | D8: 0.4 | E8: 0.3 | F8: 0.3 | G8: 0.6 | H8: 0.6 | I8: 0.5 | J8: 0.4
A9: 2 | C9: 11.5 | D9: 1.7 | E9: 1.3 | F9: 1.7 | G9: 3.3 | H9: 3.4 | I9: 3.2 | J9: 3.2
A10: 3 | C10: 9 | D10: 3.1 | E10: 2.2 | F10: 3 | G10: 5.2 | H10: 5.3 | I10: 5.4 | J10: 5
A11: 4 | C11: 7.2 | D11: 3.4 | E11: 3.1 | F11: 4.4 | G11: 4.3 | H11: 3.9 | I11: 4.6 | J11: 3.9
A12: 5 | C12: 8.9 | D12: 9 | E12: 3.8 | F12: 5 | G12: 5.4 | H12: 5.6 | I12: 6 | J12: 5.5
A14: unter 2 bis 5 zusammen | C14: 41.3 | D14: 17.6 | E14: 10.7 | F14: 14.4 | G14: 18.8 | H14: 18.8 | I14: =SUM(I8:I12) -> 19.7 | J14: =SUM(J8:J12) -> 18
A16: 6 | C16: 6.8 | D16: 9.3 | E16: 4.1 | F16: 5.4 | G16: 5.4 | H16: 6.2 | I16: 5.6 | J16: 6.7
A17: 7 | C17: 4.6 | D17: 8.9 | E17: 4.2 | F17: 4.9 | G17: 4.8 | H17: 5 | I17: 5.6 | J17: 6.4
A18: 8 | C18: 4.1 | D18: 8 | E18: 3.6 | F18: 4.3 | G18: 4.3 | H18: 4.8 | I18: 5 | J18: 5.8
A19: 9 | C19: 4.7 | D19: 6.5 | E19: 2.8 | F19: 3 | G19: 4.2 | H19: 4.5 | I19: 5.3 | J19: 5.2
A20: 10 | C20: 4.2 | D20: 5.8 | E20: 6.9 | F20: 3.7 | G20: 3.8 | H20: 4.4 | I20: 4.6 | J20: 4.5
A22: 6 bis 10 zusammen | C22: 24.4 | D22: 38.5 | E22: 21.6 | F22: 21.3 | G22: 22.5 | H22: 24.8 | I22: =SUM(I16:I20) -> 26.1 | J22: =SUM(J16:J20) -> 28.6
A24: 11 bis 15 | C24: 14.9 | D24: 19.6 | E24: 30.7 | F24: 14 | G24: 13.1 | H24: 16.5 | I24: 18.2 | J24: 18.5
A25: 16 bis 20 | C25: 10.2 | D25: 13.2 | E25: 17.4 | F25: 23 | G25: 11.5 | H25: 11 | I25: 11.5 | J25: 12.1
A26: 21 bis 25 | C26: 4.5 | D26: 6.5 | E26: 11.7 | F26: 14.4 | G26: 16.6 | H26: 8.8 | I26: 7.8 | J26: 7.6
A27: über 25 | C27: 4.8 | D27: 4.6 | E27: 7.9 | F27: 12.9 | G27: 17.5 | H27: 20.2 | I27: 16.7 | J27: 15.2
A29: Insgesamt | C29: =C24+C25+C26+C27+C22+C14 -> 100.1 | D29: 100 | E29: 100 | F29: 100 | G29: 100 | H29: 100.1 | I29: =I24+I25+I26+I27+I22+I14 -> 100 | J29: 100
A32: 1 berechnete Differenz zwischen dem Jahr der Rechtskraft und dem Jahr der Eheschließung

Sheet 7.
A2: 7. Ehescheidungen seit 2016 in Sachsen-Anhalt nach dem Eheschließungsjahr
A5: Eheschließungsjahr | B5: Ehescheidungen
B6: 2016 | C6: 2017 | D6: 2018 | E6: 2019 | F6: 2020 | G6: 2021
A8: 1994 und früher | B8: 1107 | C8: 899 | D8: 693 | E8: 699 | F8: 565 | G8: 478
A10: 1995 | B10: 66 | C10: 70 | D10: 50 | E10: 51 | F10: 49 | G10: 47
A11: 1996 | B11: 75 | C11: 79 | D11: 55 | E11: 50 | F11: 54 | G11: 46
A12: 1997 | B12: 86 | C12: 74 | D12: 56 | E12: 44 | F12: 36 | G12: 40
A13: 1998 | B13: 108 | C13: 71 | D13: 57 | E13: 72 | F13: 56 | G13: 57
A14: 1999 | B14: 101 | C14: 79 | D14: 85 | E14: 62 | F14: 69 | G14: 55
A16: 2000 | B16: 112 | C16: 93 | D16: 83 | E16: 82 | F16: 84 | G16: 65
A17: 2001 | B17: 100 | C17: 94 | D17: 77 | E17: 71 | F17: 58 | G17: 54
A18: 2002 | B18: 109 | C18: 113 | D18: 85 | E18: 91 | F18: 79 | G18: 69
A19: 2003 | B19: 109 | C19: 104 | D19: 108 | E19: 99 | F19: 68 | G19: 89
A20: 2004 | B20: 158 | C20: 160 | D20: 119 | E20: 120 | F20: 101 | G20: 102
A22: 2005 | B22: 178 | C22: 163 | D22: 138 | E22: 108 | F22: 117 | G22: 104
A23: 2006 | B23: 178 | C23: 159 | D23: 146 | E23: 131 | F23: 102 | G23: 103
A24: 2007 | B24: 202 | C24: 178 | D24: 159 | E24: 142 | F24: 133 | G24: 119
A25: 2008 | B25: 236 | C25: 194 | D25: 180 | E25: 135 | F25: 140 | G25: 120
A26: 2009 | B26: 272 | C26: 181 | D26: 173 | E26: 166 | F26: 124 | G26: 157
A28: 2010 | B28: 237 | C28: 203 | D28: 185 | E28: 190 | F28: 157 | G28: 141
A29: 2011 | B29: 229 | C29: 227 | D29: 198 | E29: 181 | F29: 178 | G29: 156
A30: 2012 | B30: 162 | C30: 215 | D30: 197 | E30: 187 | F30: 169 | G30: 180
A31: 2013 | B31: 182 | C31: 142 | D31: 182 | E31: 205 | F31: 191 | G31: 199
A32: 2014 | B32: 148 | C32: 169 | D32: 128 | E32: 196 | F32: 190 | G32: 221
A34: 2015 | B34: 28 | C34: 126 | D34: 163 | E34: 144 | F34: 205 | G34: 232
A35: 2016 | B35: - | C35: 15 | D35: 138 | E35: 180 | F35: 157 | G35: 191
A36: 2017 | B36: x | C36: - | D36: 24 | E36: 119 | F36: 184 | G36: 134
A37: 2018 | B37: x | C37: x | D37: - | E37: 21 | F37: 107 | G37: 174
A38: 2019 | B38: x | C38: x | D38: x | E38: - | F38: 16 | G38: 110
A40: 2020 | B40: x | C40: x | D40: x | E40: x | F40: - | G40: 15
A41: 2021 | B41: x | C41: x | D41: x | E41: x | F41: x | G41: -
A43: Insgesamt | B43: 4183 | C43: 3808 | D43: 3479 | E43: 3546 | F43: 3389 | G43: 3458

Sheet 8.
A2: 8. Ehescheidungen in Sachsen-Anhalt nach dem Altersunterschied der Ehegatten
A5: Jahr | B5: Ins- gesamt | C5: Ehescheidungen nach dem Altersunterschied der Ehegatten
C6: Ehegatte 11 um … Jahre älter | F6: Ehegatten gleich alt (weniger als 1 Jahr) | G6: Ehegatte 22 um … Jahre älter
C7: 1-5 | D7: 6-10 | E7: 11 und mehr | G7: 1-5 | H7: 6-10 | I7: 11 und mehr
A9: 2020 | B9: 3389 | C9: 1491 | D9: 540 | E9: 231 | F9: 596 | G9: 418 | H9: 78 | I9: 35
A10: 2021 | B10: 3458 | C10: 1525 | D10: 567 | E10: 206 | F10: 618 | G10: 422 | H10: 82 | I10: 38
A13: 1 Mann aus gemischtgeschlechtlicher Ehe sowie der jeweils ältere Mann aus gleichgeschlechtlicher Ehe
A14: 2 Frau aus gemischtgeschlechtlicher Ehe sowie die jeweils ältere Frau aus gleichgeschlechtlicher Ehe

Sheet 9.
A2: 9. Ehescheidungen seit 2015 in Sachsen-Anhalt nach Staatsangehörigkeit der Ehegatten
A5: Jahr | B5: Insgesamt | C5: Ehescheidungen
C6: beide Ehegatten deutsch | D6: mindestens ein Ehegatte mit ausländischer Staatsangehörigkeit1
D7: zusammen | E7: darunter beide Ehegatten ausländisch
A10: 2015 | B10: 4109 | C10: 3944 | D10: 165 | E10: 19
A11: 2016 | B11: 4183 | C11: 4038 | D11: 145 | E11: 24
A12: 2017 | B12: 3808 | C12: 3644 | D12: 164 | E12: 37
A13: 2018 | B13: 3479 | C13: 3323 | D13: 156 | E13: 40
A14: 2019 | B14: 3546 | C14: 3385 | D14: 161 | E14: 42
A15: 2020 | B15: 3389 | C15: 3239 | D15: 150 | E15: 44
A16: 2021 | B16: 3458 | C16: 3298 | D16: 160 | E16: 56
A19: 1 einschließlich staatenlos und unbekannter Staatsangehörigkeit

Sheet 10.
A2: 10. Ehescheidungen seit 1991 in Sachsen-Anhalt nach der Anzahl der gemeinschaftlichen minderjährigen
A3: 10. Kinder
A5: Jahr | C5: Ehescheidungen | G5: Gesamtzahl der gemeinschaftlichen minderjährigen Kinder
C6: insgesamt | D6: nach der Anzahl der gemeinschaftlichen minderjährigen Kinder1 dieser Ehen
D7: 0 | E7: 1 | F7: 2 und mehr
A10: 1991 | C10: 1 519 | D10: 566 | E10: 593 | F10: 360 | G10: 1386
A11: 1995 | C11: 3867 | D11: 1130 | E11: 1651 | F11: 1086 | G11: 4074
A12: 2000 | C12: 5823 | D12: 2308 | E12: 2255 | F12: 1260 | G12: 5065
A13: 2005 | C13: 5227 | D13: 2815 | E13: 1638 | F13: 774 | G13: 3367
A15: 2010 | C15: 4500 | D15: 2565 | E15: 1221 | F15: 714 | G15: 2868
A16: 2011 | C16: 4808 | D16: 2559 | E16: 1390 | F16: 859 | G16: 3329
A17: 2012 | C17: 4620 | D17: 2454 | E17: 1304 | F17: 862 | G17: 3291
A18: 2013 | C18: 4220 | D18: 2178 | E18: 1228 | F18: 814 | G18: 3096
A19: 2014 | C19: 4199 | D19: 2101 | E19: 1206 | F19: 892 | G19: 3235
A21: 2015 | C21: 4109 | D21: 2058 | E21: 1213 | F21: 838 | G21: 3099
A22: 2016 | C22: 4183 | D22: 2097 | E22: 1213 | F22: 873 | G22: 3215
A23: 2017 | C23: 3808 | D23: 1882 | E23: 1139 | F23: 787 | G23: 2917
A24: 2018 | C24: 3479 | D24: 1635 | E24: 1024 | F24: 820 | G24: 2922
A25: 2019 | C25: 3546 | D25: 1666 | E25: 1095 | F25: 785 | G25: 2883
A27: 2020 | C27: 3389 | D27: 1562 | E27: 1081 | F27: 746 | G27: 2776
A28: 2021 | C28: 3458 | D28: 1522 | E28: 1082 | F28: 854 | G28: 3014
A31: 1 einschließlich der legitimierten Kinder

Sheet 11.
A2: 11. Ehescheidungen in Sachsen-Anhalt nach kreisfreien Städten und Landkreisen sowie nach der Anzahl
A3: 10. der gemeinschaftlichen minderjährigen Kinder
A5: Kreisfreie Stadt Landkreis Land | B5: Ehescheidungen | F5: Gesamtzahl der gemeinschaftlichen minderjährigen Kinder
B6: insgesamt | C6: nach der Anzahl der gemeinschaftlichen minderjährigen Kinder1 dieser Ehen
C7: 0 | D7: 1 | E7: 2 und mehr
A10: Dessau-Roßlau, Stadt | B10: 128 | C10: 57 | D10: 43 | E10: 28 | F10: 104
A11: Halle (Saale), Stadt | B11: 466 | C11: 217 | D11: 137 | E11: 112 | F11: 403
A12: Magdeburg, Landeshauptstadt | B12: 338 | C12: 156 | D12: 92 | E12: 90 | F12: 297
A14: Altmarkkreis Salzwedel | B14: 113 | C14: 47 | D14: 30 | E14: 36 | F14: 107
A15: Anhalt-Bitterfeld | B15: 231 | C15: 113 | D15: 72 | E15: 46 | F15: 178
A16: Börde | B16: 328 | C16: 122 | D16: 115 | E16: 91 | F16: 314
A17: Burgenlandkreis | B17: 266 | C17: 117 | D17: 87 | E17: 62 | F17: 227
A18: Harz | B18: 377 | C18: 167 | D18: 108 | E18: 102 | F18: 341
A19: Jerichower Land | B19: 151 | C19: 64 | D19: 44 | E19: 43 | F19: 140
A20: Mansfeld-Südharz | B20: 216 | C20: 71 | D20: 92 | E20: 53 | F20: 210
A21: Saalekreis | B21: 173 | C21: 72 | D21: 55 | E21: 46 | F21: 160
A22: Salzlandkreis | B22: 325 | C22: 150 | D22: 108 | E22: 67 | F22: 258
A23: Stendal | B23: 186 | C23: 94 | D23: 48 | E23: 44 | F23: 150
A24: Wittenberg | B24: 160 | C24: 75 | D24: 51 | E24: 34 | F24: 125
A26: Sachsen-Anhalt | B26: 3458 | C26: 1522 | D26: 1082 | E26: 854 | F26: 3014
A29: 1 einschließlich der legitimierten Kinder

Sheet Seite 16 (hidden)
A1: 16
A3: =CONCATENATE(#REF!, " ",#REF!) -> 
A6: Eheschließungsjahr | B6: Ehescheidungen
B7: 2017
A10: 2017 | B10: 0
A11: 2016 | B11: 15
A12: 2015 | B12: 126
A14: 2014 | B14: 169
A15: 2013 | B15: 142
A16: 2012 | B16: 215
A17: 2011 | B17: 227
A18: 2010 | B18: 203
A20: 2009 | B20: 181
A21: 2008 | B21: 194
A22: 2007 | B22: 178
A23: 2006 | B23: 159
A24: 2005 | B24: 163
A26: 2004 | B26: 160
A27: 2003 | B27: 104
A28: 2002 | B28: 113
A29: 2001 | B29: 94
A30: 2000 | B30: 93
A32: 1999 | B32: 79
A33: 1998 | B33: 71
A34: 1997 | B34: 74
A35: 1996 | B35: 79
A36: 1995 | B36: 70
A38: 1994 und früher | B38: 899
A40: Insgesamt | B40: =SUM(B11:B39) -> 3808

Sheet Seite 20 (hidden)
A1: 20
G2: =HYPERLINK("#"&"Inhaltsverzeichnis!a1","zum Inhalt") -> zum Inhalt
A3: 14 Aufgehobene Lebenspartnerschaften seit 2014 in Sachsen-Anhalt nach deren Anzahl
A6: Jahr | B6: Aufhebungen der Lebenspartnerschaften
B7: Insgesamt | D7: männlich | F7: weiblich
B8: Anzahl
A10: 2014 | C10: 22 | E10: 9 | G10: 13
A11: 2015 | C11: 11 | E11: 5 | G11: 6
A12: 2016 | C12: 26 | E12: 16 | G12: 10
A13: 2017 | C13: 24 | E13: 10 | G13: 14
A17: 15 Aufgehobene Lebenspartnerschaften seit 2014 in Sachsen-Anhalt nach der durchschnittlichen Dauer der Lebenspartnerschaft
A20: Jahr | B20: Aufhebungen der Lebenspartnerschaften
B21: Insgesamt | D21: männlich | F21: weiblich
B22: durchschnittliche Dauer der Lebenspartnerschaft in Jahren
A24: 2014 | C24: 5.7 | E24: 6.5 | G24: 5.1
A25: 2015 | C25: 6.4 | E25: 8.5 | G25: 4.5
A26: 2016 | C26: 5.9 | E26: 6.8 | G26: 4.3
A27: 2017 | C27: 7.1 | E27: 8.1 | G27: 6.4
A31: 16 Aufgehobene Lebenspartnerschaften seit 2014 in Sachsen-Anhalt nach dem durchschnittlichen Altersunterschied der Partner
A34: Jahr | B34: Aufhebungen der Lebenspartnerschaften
B35: Insgesamt | D35: männlich | F35: weiblich
B36: durchschnittlicher Altersunterschied der Partner
A38: 2014 | C38: 7.2 | E38: 11.2 | G38: 4.4
A39: 2015 | C39: 10.3 | E39: 9.8 | G39: 10.7
A40: 2016 | C40: 7.6 | E40: 10.3 | G40: 3.2
A41: 2017 | C41: 7.5 | E41: 12.2 | G41: 4.1
A45: 17 Aufgehobene Lebenspartnerschaften seit 2014 in Sachsen-Anhalt nach dem Geschlecht der Beteiligten
A48: Jahr | B48: Aufhebungen der Lebenspartnerschaften
B49: insgesamt | D49: männlich | F49: weiblich
B50: Beteiligte
A52: 2014 | C52: 44 | E52: 18 | G52: 26
A53: 2015 | C53: 22 | E53: 10 | G53: 12
A54: 2016 | C54: 52 | E54: 32 | G54: 20
A55: 2017 | C55: 48 | E55: 20 | G55: 28

Sheet entfällt Datenschutz (hidden)
A1: 16 | Y1: 17
K2: =HYPERLINK("#"&"Inhaltsverzeichnis!a1","zum Inhalt") -> zum Inhalt | X2: =HYPERLINK("#"&"Inhaltsverzeichnis!a1","zum Inhalt") -> zum Inhalt
A3: 11 Ehescheidungen 2017 in Sachsen-Anhalt nach der Staatsangehörigkeit der Ehegatten | M3: Noch 11 Ehescheidungen 2017 in Sachsen-Anhalt nach der Staatsangehörigkeit der Ehegatten
A5: Lfd. Nr. | B5: Staats- angehörigkeit des Ehemannes | C5: Staatsangehörigkeit der Ehefrau | M5: Staatsangehörigkeit der Ehefrau | Y5: LfdNr.
C6: Ins- ge- samt | D6: deutsch | E6: ame- rika- nisch | F6: bosn. herze- gowi- nisch | G6: bri- tisch | H6: fran- zö- sisch | I6: grie-chisch | J6: italie-nisch | K6: kroa-tisch | L6: monte-negri-nisch | M6: nie- der- län-disch | N6: öster- rei- chisch | O6: pol- nisch | P6: ru- mä-nisch | Q6: rus- sisch | R6: ser- bisch | S6: spa- nisch | T6: thai- län-disch | U6: tür- kisch | V6: ukrai-nisch | W6: vietna-me- sisch | X6: sonstige (einschl. staaten-los/un-bekannt)
A10: 1 | B10: Insgesamt | C10: 3808 | D10: 3723 | E10: 0 | F10: 0 | G10: 0 | H10: 0 | I10: 3 | J10: 1 | K10: 1 | L10: =SUM(L11:L31)+L33 -> 0 | M10: 1 | O10: 2 | P10: 4 | Q10: 9 | T10: 2 | U10: 1 | V10: 10 | W10: 15 | X10: 36 | Y10: 1
A11: 2 | B11: deutsch | C11: 3692 | D11: 3644 | E11: 0 | F11: 0 | G11: 0 | H11: 0 | I11: 0 | J11: 1 | K11: 1 | L11: 0 | M11: 1 | N11: 0 | O11: 2 | P11: 3 | Q11: 5 | R11: 0 | S11: 0 | T11: 2 | U11: 0 | V11: 6 | W11: 4 | X11: 23 | Y11: 2
A12: 3 | B12: amerikanisch | C12: 1 | D12: 1 | E12: 0 | F12: 0 | G12: 0 | H12: 0 | I12: 0 | J12: 0 | K12: 0 | L12: 0 | M12: 0 | N12: 0 | O12: 0 | P12: 0 | Q12: 0 | R12: 0 | S12: 0 | T12: 0 | U12: 0 | V12: 0 | W12: 0 | X12: 0 | Y12: 3
A13: 4 | B13: bosnisch-
B14: herzegowinisch | C14: 0 | D14: 0 | E14: 0 | F14: 0 | G14: 0 | H14: 0 | I14: 0 | J14: 0 | K14: 0 | L14: 0 | M14: 0 | N14: 0 | O14: 0 | P14: 0 | Q14: 0 | R14: 0 | S14: 0 | T14: 0 | U14: 0 | V14: 0 | W14: 0 | X14: 0 | Y14: 4
A15: 5 | B15: britisch | C15: 1 | D15: 1 | E15: 0 | F15: 0 | G15: 0 | H15: 0 | I15: 0 | J15: 0 | K15: 0 | L15: 0 | M15: 0 | N15: 0 | O15: 0 | P15: 0 | Q15: 0 | R15: 0 | S15: 0 | T15: 0 | U15: 0 | V15: 0 | W15: 0 | X15: 0 | Y15: 5
A16: 6 | B16: französisch | C16: 0 | D16: 0 | E16: 0 | F16: 0 | G16: 0 | H16: 0 | I16: 0 | J16: 0 | K16: 0 | L16: 0 | M16: 0 | N16: 0 | O16: 0 | P16: 0 | Q16: 0 | R16: 0 | S16: 0 | T16: 0 | U16: 0 | V16: 0 | W16: 0 | X16: 0 | Y16: 6
A17: 7 | B17: griechisch | C17: 3 | D17: 1 | E17: 0 | F17: 0 | G17: 0 | H17: 0 | I17: 2 | J17: 0 | K17: 0 | L17: 0 | M17: 0 | N17: 0 | O17: 0 | P17: 0 | Q17: 0 | R17: 0 | S17: 0 | T17: 0 | U17: 0 | V17: 0 | W17: 0 | X17: 1 | Y17: 7
A18: 8 | B18: italienisch | C18: 1 | D18: 1 | E18: 0 | F18: 0 | G18: 0 | H18: 0 | I18: 0 | J18: 0 | K18: 0 | L18: 0 | M18: 0 | N18: 0 | O18: 0 | P18: 0 | Q18: 0 | R18: 0 | S18: 0 | T18: 0 | U18: 0 | V18: 0 | W18: 0 | X18: 0 | Y18: 8
A19: 9 | B19: kroatisch | C19: 1 | D19: 1 | E19: 0 | F19: 0 | G19: 0 | H19: 0 | I19: 0 | J19: 0 | K19: 0 | L19: 0 | M19: 0 | N19: 0 | O19: 0 | P19: 0 | Q19: 0 | R19: 0 | S19: 0 | T19: 0 | U19: 0 | V19: 0 | W19: 0 | X19: 0 | Y19: 9
A20: 10 | B20: montenegrinisch | C20: 0 | D20: 0 | E20: 0 | F20: 0 | G20: 0 | H20: 0 | I20: 0 | J20: 0 | K20: 0 | L20: 0 | M20: 0 | N20: 0 | O20: 0 | P20: 0 | Q20: 0 | R20: 0 | S20: 0 | T20: 0 | U20: 0 | V20: 0 | W20: 0 | X20: 0 | Y20: 10
A21: 11 | B21: niederländisch | C21: 0 | D21: 0 | E21: 0 | F21: 0 | G21: 0 | H21: 0 | I21: 0 | J21: 0 | K21: 0 | L21: 0 | M21: 0 | N21: 0 | O21: 0 | P21: 0 | Q21: 0 | R21: 0 | S21: 0 | T21: 0 | U21: 0 | V21: 0 | W21: 0 | X21: 0 | Y21: 11
A22: 12 | B22: österreichisch | C22: 0 | D22: 0 | E22: 0 | F22: 0 | G22: 0 | H22: 0 | I22: 0 | J22: 0 | K22: 0 | L22: 0 | M22: 0 | N22: 0 | O22: 0 | P22: 0 | Q22: 0 | R22: 0 | S22: 0 | T22: 0 | U22: 0 | V22: 0 | W22: 0 | X22: 0 | Y22: 12
A23: 13 | B23: polnisch | C23: 1 | D23: 1 | E23: 0 | F23: 0 | G23: 0 | H23: 0 | I23: 0 | J23: 0 | K23: 0 | L23: 0 | M23: 0 | N23: 0 | O23: 0 | P23: 0 | Q23: 0 | R23: 0 | S23: 0 | T23: 0 | U23: 0 | V23: 0 | W23: 0 | X23: 0 | Y23: 13
A24: 14 | B24: rumänisch | C24: 2 | D24: 2 | E24: 0 | F24: 0 | G24: 0 | H24: 0 | I24: 0 | J24: 0 | K24: 0 | L24: 0 | M24: 0 | N24: 0 | O24: 0 | P24: 0 | Q24: 0 | R24: 0 | S24: 0 | T24: 0 | U24: 0 | V24: 0 | W24: 0 | X24: 0 | Y24: 14
A25: 15 | B25: russisch | C25: 7 | D25: 3 | E25: 0 | F25: 0 | G25: 0 | H25: 0 | I25: 0 | J25: 0 | K25: 0 | L25: 0 | M25: 0 | N25: 0 | O25: 0 | P25: 0 | Q25: 0 | R25: 0 | S25: 0 | T25: 0 | U25: 0 | V25: 1 | W25: 0 | X25: 0 | Y25: 15
A26: 16 | B26: serbisch | C26: 2 | D26: 2 | E26: 0 | F26: 0 | G26: 0 | H26: 0 | I26: 0 | J26: 0 | K26: 0 | L26: 0 | M26: 0 | N26: 0 | O26: 0 | P26: 0 | Q26: 0 | R26: 0 | S26: 0 | T26: 0 | U26: 0 | V26: 0 | W26: 0 | X26: 0 | Y26: 16
A27: 17 | B27: spanisch | C27: 0 | D27: 0 | E27: 0 | F27: 0 | G27: 0 | H27: 0 | I27: 0 | J27: 0 | K27: 0 | L27: 0 | M27: 0 | N27: 0 | O27: 0 | P27: 0 | Q27: 0 | R27: 0 | S27: 1 | T27: 0 | U27: 0 | V27: 0 | W27: 0 | X27: 0 | Y27: 17
A28: 18 | B28: thailändisch | C28: 0 | D28: 0 | E28: 0 | F28: 0 | G28: 0 | H28: 0 | I28: 0 | J28: 0 | K28: 0 | L28: 0 | M28: 0 | N28: 0 | O28: 0 | P28: 0 | Q28: 0 | R28: 0 | S28: 0 | T28: 0 | U28: 0 | V28: 0 | W28: 0 | X28: 0 | Y28: 18
A29: 19 | B29: türkisch | C29: 14 | D29: 12 | E29: 0 | F29: 0 | G29: 0 | H29: 0 | I29: 0 | J29: 0 | K29: 0 | L29: 0 | M29: 0 | N29: 0 | O29: 0 | P29: 0 | Q29: 0 | R29: 0 | S29: 0 | T29: 0 | U29: 1 | V29: 0 | W29: 0 | X29: 1 | Y29: 19
A30: 20 | B30: ukrainisch | C30: 4 | D30: 3 | E30: 0 | F30: 0 | G30: 0 | H30: 0 | I30: 0 | J30: 0 | K30: 0 | L30: 0 | M30: 0 | N30: 0 | O30: 0 | P30: 0 | Q30: 0 | R30: 0 | S30: 0 | T30: 0 | U30: 0 | V30: 1 | W30: 0 | X30: 0 | Y30: 20
A31: 21 | B31: vietnamesisch | C31: 14 | D31: 3 | E31: 0 | F31: 0 | G31: 0 | H31: 0 | I31: 0 | J31: 0 | K31: 0 | L31: 0 | M31: 0 | N31: 0 | O31: 0 | P31: 0 | Q31: 0 | R31: 0 | S31: 0 | T31: 0 | U31: 0 | V31: 0 | W31: 11 | X31: 0 | Y31: 21
A32: 22 | B32: sonstige
B33: (einschließlich staatenlos/ unbekannt) | C33: 65 | D33: 48 | E33: 0 | F33: 0 | G33: 0 | H33: 0 | I33: 1 | J33: 0 | K33: 0 | L33: 0 | M33: 0 | N33: 0 | O33: 0 | P33: 0 | Q33: 1 | R33: 1 | S33: 0 | T33: 0 | U33: 0 | V33: 2 | W33: 0 | X33: 12 | Y33: 22

Sheet Seite 13_1 (hidden)
A3: 9_1 | B3: Anzahl und Anteile geschiedene Ehen 2017
A5: Ehedauer in Jahren | C5: Anzahl | D5: Anteil
C6: Geschiedene | D6: Geschiedene
C7: Ehen | D7: Ehen
B9: Unter 1 | C9: - | D9: -
B10: 1 | C10: 15 | D10: =ROUND(C10/$C$42*100,1) -> 0.4
B11: 2 | C11: 126 | D11: =ROUND(C11/$C$42*100,1) -> 3.3
B12: 3 | C12: 169 | D12: 4.4
B13: 4 | C13: 142 | D13: 3.7
B14: 5 | C14: 215 | D14: 5.6
B16: 6 | C16: 227 | D16: 6
B17: 7 | C17: 203 | D17: 5.3
B18: 8 | C18: 181 | D18: 4.8
B19: 9 | C19: 194 | D19: 5.1
B20: 10 | C20: 178 | D20: 4.7
B22: 11 | C22: 159 | D22: 4.2
B23: 12 | C23: 163 | D23: 4.3
B24: 13 | C24: 160 | D24: 4.2
B25: 14 | C25: 104 | D25: 2.7
B26: 15 | C26: 113 | D26: 3
B28: 16 | C28: 94 | D28: 2.5
B29: 17 | C29: 93 | D29: 2.4
B30: 18 | C30: 79 | D30: 2.1
B31: 19 | C31: 71 | D31: 1.9
B32: 20 | C32: 74 | D32: 1.9
B34: 21 | C34: 79 | D34: 2.1
B35: 22 | C35: 70 | D35: 1.8
B36: 23 | C36: 67 | D36: 1.8
B37: 24 | C37: 54 | D37: 1.4
B38: 25 | C38: 52 | D38: 1.4
B39: 26 | C39: 51 | D39: 1.3
B40: Über 26 | C40: 675 | D40: 17.7
B42: insgesamt | C42: 3808 | D42: 100
